BodyName,ServiceAreaCategorisation,ServiceDivisionCategorisation,ExpensesType,Date,TransactionNumber,Amount,CapitalorRevenue,SupplierName
Peterborough City Council,Support Services,Support Services,Employees,03/10/2011,396502,1489.2,REVENUE,Sacco Mann Ltd
Peterborough City Council,Support Services,Support Services,Employees,03/10/2011,397792,1489.2,REVENUE,Sacco Mann Ltd
Peterborough City Council,Capital,Capital,Capital Pending Update to BS,03/10/2011,400049,1588.8,CAPITAL,The Technology Forge Ltd
Peterborough City Council,Environmental and Regulatory Services,Flood Defence & Land Drainage,Supplies and Services,03/10/2011,401619,13687.2,REVENUE,L A Jackson
Peterborough City Council,Children's & Education Services - Children's Social Care,Other Children's & Families Services,Employees,03/10/2011,401883,1270.5,REVENUE,Blue Group International Ltd
Peterborough City Council,"Highways, Roads & Transport Services",Public Transport,Supplies and Services,03/10/2011,402104,885.11,REVENUE,Veolia Transport UK Ltd
Peterborough City Council,Environmental and Regulatory Services,Environmental Initiatives,Supplies and Services,03/10/2011,402490,55500,REVENUE,Peterborough Environment City Trust
Peterborough City Council,Children's & Education Services - Children's Social Care,Other Children's & Families Services,Employees,03/10/2011,402570,1609.5,REVENUE,Care Recruitment UK Ltd
Peterborough City Council,Children's & Education Services - Children's Social Care,Other Children's & Families Services,Employees,03/10/2011,402590,1724.04,REVENUE,Care Recruitment UK Ltd
Peterborough City Council,Children's & Education Services - Education,Non-School Funding,Supplies and Services,03/10/2011,402764,3379.77,REVENUE,Kexgill Ltd
Peterborough City Council,Children's & Education Services - Children's Social Care,Support Services & Management Costs,Employees,03/10/2011,402850,2675,REVENUE,Redacted Personal Data
Peterborough City Council,Children's & Education Services - Children's Social Care,Family Support Services,Third Party Payments,03/10/2011,402860,60495,REVENUE,Ormiston Children & Families Trust
Peterborough City Council,Corporate & Democratic Core,Democratic Representation & Managemetn,Premises,03/10/2011,402873,787.87,REVENUE,E Bowman & Sons Ltd
Peterborough City Council,Support Services,Support Services,Premises,03/10/2011,402974,1677.6,REVENUE,Beebys Ltd
Peterborough City Council,Children's & Education Services - Children's Social Care,Family Support Services,Third Party Payments,03/10/2011,402978,64311.75,REVENUE,Ormiston Children & Families Trust
Peterborough City Council,"Highways, Roads & Transport Services",Parking Services,Employees,03/10/2011,402997,528,REVENUE,Unity Recruitment Ltd
Peterborough City Council,"Highways, Roads & Transport Services",Parking Services,Employees,03/10/2011,402998,974.4,REVENUE,Unity Recruitment Ltd
Peterborough City Council,"Highways, Roads & Transport Services",Parking Services,Employees,03/10/2011,402999,672,REVENUE,Unity Recruitment Ltd
Peterborough City Council,Capital,Capital,Capital Pending Update to BS,03/10/2011,403033,4752,CAPITAL,R J Warren Ltd
Peterborough City Council,More than one Service Area Category,More than one Service Division,Supplies and Services,03/10/2011,403069,2631.26,REVENUE,Capita Business Services Ltd
Peterborough City Council,Children's & Education Services - Children's Social Care,Children Looked After,Supplies and Services - Transfer Payments,03/10/2011,403118,10796,REVENUE,Lincoln House Childrens Services
Peterborough City Council,Children's & Education Services - Children's Social Care,Other Children's & Families Services,Employees,03/10/2011,403127,1450.8,REVENUE,Medicare First
Peterborough City Council,Children's & Education Services - Children's Social Care,Other Children's & Families Services,Employees,03/10/2011,403128,1474.2,REVENUE,Medicare First
Peterborough City Council,Children's & Education Services - Children's Social Care,Family Support Services,Support Services,03/10/2011,403202,720,REVENUE,Manor Marquees & Structures
Peterborough City Council,"Highways, Roads & Transport Services",Street Lighting,Premises,03/10/2011,406525,1806.82,REVENUE,E.ON Energy
Peterborough City Council,More than one Service Area Category,More than one Service Division,More than one Expenses Type,03/10/2011,406534,69327.16,"Mixture of Capital, Revenue and/or Balance Sheet",Ringway Infrastructure Services
Peterborough City Council,"Highways, Roads & Transport Services",Street Lighting,Supplies and Services,03/10/2011,406801,37464.42,REVENUE,Volker Highways MEWS Ltd
Peterborough City Council,Children's & Education Services - Children's Social Care,Other Children's & Families Services,Employees,03/10/2011,406855,1658.78,REVENUE,Blue Group International Ltd
Peterborough City Council,Support Services,Support Services & Management Costs,Employees,03/10/2011,406864,1645,REVENUE,Anglia Ruskin University
Peterborough City Council,Children's & Education Services - Children's Social Care,Support Services & Management Costs,Employees,03/10/2011,406865,1688,REVENUE,Anglia Ruskin University
Peterborough City Council,Deficit/(Surplus) on Trading Undertakings,Trading Account Surpluses & Deficits,Premises,03/10/2011,406927,6600,REVENUE,Anglia Support Partnership
Peterborough City Council,Capital,Capital,Capital Pending Update to BS,03/10/2011,406933,4554.8,CAPITAL,Alban Shipping Ltd
Peterborough City Council,Capital,Capital,Capital Pending Update to BS,03/10/2011,406964,311280,CAPITAL,Murray & Willis Ltd
Peterborough City Council,More than one Service Area Category,More than one Service Division,More than one Expenses Type,03/10/2011,407748,137219.06,"Mixture of Capital, Revenue and/or Balance Sheet",Ringway Infrastructure Services
Peterborough City Council,Planning Services,Building Control,Supplies and Services,03/10/2011,407786,913.2,REVENUE,BSi Management Systems
Peterborough City Council,Children's & Education Services - Children's Social Care,Children Looked After,Supplies and Services - Transfer Payments,03/10/2011,407847,5913.25,REVENUE,Heath Farm Family Services Ltd
Peterborough City Council,Cultural and Related Services,Waste Collection,Supplies and Services,03/10/2011,407908,15862.94,REVENUE,H W Martin Waste Ltd
Peterborough City Council,Deficit/(Surplus) on Trading Undertakings,Trading Account Surpluses & Deficits,Supplies and Services,03/10/2011,409160,2236.98,REVENUE,Premier Decorators UK Ltd
Peterborough City Council,Support Services,Support Services,Supplies and Services,03/10/2011,409201,4664,REVENUE,Criminal Records Bureau
Peterborough City Council,Support Services,Support Services,Premises,03/10/2011,409277,660,REVENUE,Redacted Personal Data
Peterborough City Council,More than one Service Area Category,More than one Service Division,Balance Sheet,03/10/2011,409341,2691.89,Balance Sheet,City College Peterborough
Peterborough City Council,Support Services,Support Services,Premises,03/10/2011,409345,600,REVENUE,Dept for Work & Pensions
Peterborough City Council,Central Services to the Public,Elections,Supplies and Services,03/10/2011,409416,2679.2,REVENUE,Royal Mail
Peterborough City Council,Support Services,Support Services,Supplies and Services,03/10/2011,409417,711.45,REVENUE,Edenred
Peterborough City Council,Support Services,Support Services,Supplies and Services,03/10/2011,409418,17382.52,REVENUE,Edenred
Peterborough City Council,Support Services,Support Services,Supplies and Services,03/10/2011,409504,6189.5,REVENUE,Browne Jacobson
Peterborough City Council,Support Services,Support Services,Supplies and Services,03/10/2011,409518,5278.8,REVENUE,Reed Business Information Ltd
Peterborough City Council,Children's & Education Services - Children's Social Care,Children Looked After,Supplies and Services - Transfer Payments,03/10/2011,409526,712.99,REVENUE,PC Homes
Peterborough City Council,Deficit/(Surplus) on Trading Undertakings,Trading Account Surpluses & Deficits,Supplies and Services,03/10/2011,409580,2075.16,REVENUE,Barron Clark Castings Ltd
Peterborough City Council,Deficit/(Surplus) on Trading Undertakings,Trading Account Surpluses & Deficits,Supplies and Services,03/10/2011,409581,1206.72,REVENUE,Barron Clark Castings Ltd
Peterborough City Council,Deficit/(Surplus) on Trading Undertakings,Trading Account Surpluses & Deficits,Premises,05/10/2011,377787,1530,REVENUE,B Safe Electrical Services
Peterborough City Council,Children's & Education Services - Children's Social Care,Other Children's & Families Services,Third Party Payments,05/10/2011,383186,16878,REVENUE,P'boro & Dist Family Mediation Service
Peterborough City Council,Children's & Education Services - Children's Social Care,Children Looked After,Supplies and Services - Transfer Payments,05/10/2011,391961,7824,REVENUE,Next Steps Care Management Ltd
Peterborough City Council,Children's & Education Services - Children's Social Care,Other Children's & Families Services,Employees,05/10/2011,394608,1793.76,REVENUE,Frontline Staffing Ltd
Peterborough City Council,Children's & Education Services - Children's Social Care,Other Children's & Families Services,Employees,05/10/2011,395333,1006.66,REVENUE,Service Care Solutions Ltd
Peterborough City Council,Children's & Education Services - Children's Social Care,Other Children's & Families Services,Employees,05/10/2011,397943,1060.58,REVENUE,Service Care Solutions Ltd
Peterborough City Council,Children's & Education Services - Children's Social Care,Other Children's & Families Services,Employees,05/10/2011,399474,1624.08,REVENUE,Frontline Staffing Ltd
Peterborough City Council,More than one Service Area Category,More than one Service Division,Balance Sheet,05/10/2011,399892,718.02,Balance Sheet,Redacted Personal Data
Peterborough City Council,Deficit/(Surplus) on Trading Undertakings,Trading Account Surpluses & Deficits,Supplies and Services,05/10/2011,400309,1116.61,REVENUE,Danwood Contract Rentals
Peterborough City Council,Children's & Education Services - Children's Social Care,Children Looked After,Supplies and Services - Transfer Payments,05/10/2011,401770,3155.7,REVENUE,Alliance Foster Care
Peterborough City Council,Children's & Education Services - Children's Social Care,Children Looked After,Supplies and Services - Transfer Payments,05/10/2011,401780,3260.89,REVENUE,Alliance Foster Care
Peterborough City Council,Children's & Education Services - Children's Social Care,Children Looked After,Supplies and Services - Transfer Payments,05/10/2011,401794,4733.55,REVENUE,Alliance Foster Care
Peterborough City Council,Central Services to the Public,Local Tax,Employees,05/10/2011,402450,1087.2,REVENUE,The Synergy Group
Peterborough City Council,Central Services to the Public,Local Tax,Employees,05/10/2011,402470,1459.2,REVENUE,The Synergy Group
Peterborough City Council,Children's & Education Services - Children's Social Care,Support Services & Management Costs,Employees,05/10/2011,402719,2760,REVENUE,Fostering Network
Peterborough City Council,"Highways, Roads & Transport Services",Traffic management & Road Safety,Supplies and Services,05/10/2011,402865,646.8,REVENUE,Johnston Press Midlands Division
Peterborough City Council,Support Services,Support Services,Supplies and Services,05/10/2011,402972,1260,REVENUE,Intec Business Colleges Plc
Peterborough City Council,Children's & Education Services - Children's Social Care,Other Children's & Families Services,Employees,05/10/2011,402983,984.96,REVENUE,Randstad Care Ltd
Peterborough City Council,Environmental and Regulatory Services,"Cemetery, Crematorium & Mortuary Services",Supplies and Services,05/10/2011,403025,1114.55,REVENUE,Anglia Co-operative Funerals
Peterborough City Council,Planning Services,Planning Policy,Supplies and Services,05/10/2011,403031,1335.9,REVENUE,Cambridgeshire County Council
Peterborough City Council,Planning Services,Planning Policy,Supplies and Services,05/10/2011,403032,1154.98,REVENUE,Cambridgeshire County Council
Peterborough City Council,Environmental and Regulatory Services,"Cemetery, Crematorium & Mortuary Services",Premises,05/10/2011,403039,942,REVENUE,Peterborough Grass Machinery Ltd
Peterborough City Council,"Highways, Roads & Transport Services","Environmental, Safety & Routine Maintenance",Supplies and Services,05/10/2011,403041,14410.52,REVENUE,W D M Ltd
Peterborough City Council,Support Services,Support Services,Supplies and Services,05/10/2011,403060,953.23,REVENUE,Eversheds LLP
Peterborough City Council,Housing Services,Private Sector Housing Renewal,Supplies and Services,05/10/2011,403071,600,REVENUE,"Snelling, Mr Charles"
Peterborough City Council,Children's & Education Services - Education,Non-School Funding,Employees,05/10/2011,403142,1074,REVENUE,Focus on Training
Peterborough City Council,Support Services,Support Services,Employees,05/10/2011,403159,734.08,REVENUE,Sacco Mann Ltd
Peterborough City Council,Central Services to the Public,Registrar,Premises,05/10/2011,403206,2465,REVENUE,The Lawns(Peterborough) Ltd
Peterborough City Council,Central Services to the Public,Registrar,Premises,05/10/2011,403208,630,REVENUE,The Lawns(Peterborough) Ltd
Peterborough City Council,Central Services to the Public,Registrar,Premises,05/10/2011,403210,7920,REVENUE,The Lawns(Peterborough) Ltd
Peterborough City Council,Central Services to the Public,Registrar,Premises,05/10/2011,403211,3549,REVENUE,The Lawns(Peterborough) Ltd
Peterborough City Council,Deficit/(Surplus) on Trading Undertakings,Trading Account Surpluses & Deficits,Supplies and Services,05/10/2011,403217,1738.58,REVENUE,Godric Engineering Ltd
Peterborough City Council,Deficit/(Surplus) on Trading Undertakings,Trading Account Surpluses & Deficits,Supplies and Services,05/10/2011,403233,642.67,REVENUE,PG Reeves & Sons
Peterborough City Council,More than one Service Area Category,More than one Service Division,Supplies and Services,05/10/2011,403260,1239.8,REVENUE,TNT Post Midlands Ltd
Peterborough City Council,Capital,Capital,Capital Pending Update to BS,05/10/2011,404444,576,CAPITAL,Quadrant Security Group Ltd
Peterborough City Council,"Highways, Roads & Transport Services",Street Lighting,Premises,05/10/2011,404446,719.78,REVENUE,E.ON Energy
Peterborough City Council,Housing Services,Housing Benefits,Supplies and Services,05/10/2011,405652,753.26,REVENUE,Crown Records Management Ltd
Peterborough City Council,Support Services,Support Services,Premises,05/10/2011,406475,696.05,REVENUE,NB Real Estate
Peterborough City Council,Planning Services,Economic Development,Employees,05/10/2011,406531,1188,REVENUE,Hays Specialist Recruitment Ltd
Peterborough City Council,Children's & Education Services - Children's Social Care,Family Support Services,Supplies and Services,05/10/2011,406568,724.8,REVENUE,P F S Builders & Contractors
Peterborough City Council,Environmental and Regulatory Services,"Cemetery, Crematorium & Mortuary Services",Supplies and Services,05/10/2011,406569,2121.6,REVENUE,"Strickland, Mr A M"
Peterborough City Council,Support Services,Support Services,Employees,05/10/2011,406597,9675.06,REVENUE,Brook Street Bureau Plc
Peterborough City Council,Children's & Education Services - Children's Social Care,Family Support Services,Supplies and Services,05/10/2011,406603,545.16,REVENUE,Rahmqvist UK Ltd
Peterborough City Council,Children's & Education Services - Children's Social Care,Support Services & Management Costs,Supplies and Services,05/10/2011,406675,540,REVENUE,"Robertson, Miss Mary"
Peterborough City Council,"Highways, Roads & Transport Services",Public Transport,Supplies and Services,05/10/2011,406697,15000,REVENUE,First Eastern Counties Buses Ltd
Peterborough City Council,Children's & Education Services - Children's Social Care,Family Support Services,Employees,05/10/2011,406800,654.66,REVENUE,Advantage Healthcare Nursing & Care Ltd
Peterborough City Council,Cultural and Related Services,Culture & Heritage,Supplies and Services,05/10/2011,406941,3672,REVENUE,Pearce Hire
Peterborough City Council,Planning Services,Economic Development,Employees,05/10/2011,406945,958.66,REVENUE,Hays Specialist Recruitment Ltd
Peterborough City Council,Planning Services,Economic Development,Employees,05/10/2011,406946,1490.4,REVENUE,Hays Specialist Recruitment Ltd
Peterborough City Council,Children's & Education Services - Children's Social Care,Other Children's & Families Services,Employees,05/10/2011,406957,1236.24,REVENUE,Frontline Staffing Ltd
Peterborough City Council,Planning Services,Economic Development,Employees,05/10/2011,406958,1727.14,REVENUE,Hays Specialist Recruitment Ltd
Peterborough City Council,Environmental and Regulatory Services,"Cemetery, Crematorium & Mortuary Services",Supplies and Services,05/10/2011,406959,500.32,REVENUE,Scribes Ltd
Peterborough City Council,Children's & Education Services - Children's Social Care,Other Children's & Families Services,Employees,05/10/2011,406981,1609.5,REVENUE,Care Recruitment UK Ltd
Peterborough City Council,Children's & Education Services - Education,Non-School Funding,Supplies and Services,05/10/2011,407004,1170,REVENUE,Redacted Personal Data
Peterborough City Council,Support Services,Support Services,Employees,05/10/2011,407009,1132.69,REVENUE,Venn Group Ltd
Peterborough City Council,Cultural and Related Services,Waste Collection,Supplies and Services,05/10/2011,407019,297411.08,REVENUE,Waste Recycling Ltd
Peterborough City Council,Cultural and Related Services,Waste Collection,Supplies and Services,05/10/2011,407032,282039.84,REVENUE,Waste Recycling Ltd
Peterborough City Council,Children's & Education Services - Children's Social Care,Children Looked After,Employees,05/10/2011,407041,2078.04,REVENUE,Advantage Healthcare Nursing & Care Ltd
Peterborough City Council,Children's & Education Services - Children's Social Care,More than one Service Division,Employees,05/10/2011,407044,11910,REVENUE,Jane Scannell Ltd
Peterborough City Council,Children's & Education Services - Children's Social Care,Children Looked After,Employees,05/10/2011,407051,589.68,REVENUE,Randstad Care Ltd
Peterborough City Council,Children's & Education Services - Children's Social Care,Support Services & Management Costs,Employees,05/10/2011,407054,1529.14,REVENUE,Randstad Care Ltd
Peterborough City Council,Planning Services,Economic Development,Employees,05/10/2011,407066,1006.16,REVENUE,Randstad CPE
Peterborough City Council,Planning Services,Economic Development,Employees,05/10/2011,407067,1288.6,REVENUE,Randstad CPE
Peterborough City Council,Capital,Capital,Capital Pending Update to BS,05/10/2011,407069,546,CAPITAL,Clouds
Peterborough City Council,Capital,Capital,Capital Pending Update to BS,05/10/2011,407129,318970.92,CAPITAL,E N Suiter & Sons Ltd
Peterborough City Council,Children's & Education Services - Children's Social Care,Children Looked After,Supplies and Services - Transfer Payments,05/10/2011,407132,11200,REVENUE,Amegreen
Peterborough City Council,"Highways, Roads & Transport Services","Transport planning, policy and strategy",Supplies and Services,05/10/2011,407146,617.4,REVENUE,Johnston Press Midlands Division
Peterborough City Council,Children's & Education Services - Children's Social Care,Other Children's & Families Services,Employees,05/10/2011,407185,1894.99,REVENUE,Sanctuary Personnel Ltd
Peterborough City Council,Children's & Education Services - Children's Social Care,Other Children's & Families Services,Employees,05/10/2011,407187,1267.2,REVENUE,Sanctuary Personnel Ltd
Peterborough City Council,Children's & Education Services - Children's Social Care,Other Children's & Families Services,Employees,05/10/2011,407191,1591.8,REVENUE,Sanctuary Personnel Ltd
Peterborough City Council,Children's & Education Services - Children's Social Care,Other Children's & Families Services,Employees,05/10/2011,407207,1575,REVENUE,Sanctuary Personnel Ltd
Peterborough City Council,Support Services,Support Services,Employees,05/10/2011,407212,1310.4,REVENUE,Sellick Partnership Group Limited
Peterborough City Council,Support Services,Support Services,Employees,05/10/2011,407213,1789.2,REVENUE,Sellick Partnership Group Limited
Peterborough City Council,Capital,Capital,Capital Pending Update to BS,05/10/2011,407286,4513.51,CAPITAL,L Garfield (Builders) Ltd
Peterborough City Council,Support Services,Support Services,Supplies and Services,05/10/2011,407308,9240,REVENUE,Ntrinsic Consulting Europe Ltd
Peterborough City Council,Children's & Education Services - Children's Social Care,Family Support Services,Support Services,05/10/2011,407331,607.63,REVENUE,BB & B Leisure Parks Ltd
Peterborough City Council,Environmental and Regulatory Services,"Cemetery, Crematorium & Mortuary Services",Supplies and Services,05/10/2011,407455,780,REVENUE,"Strickland, Mr A M"
Peterborough City Council,"Highways, Roads & Transport Services",Public Transport,Supplies and Services,05/10/2011,407599,709.33,REVENUE,Whippet Coaches Ltd
Peterborough City Council,Support Services,Support Services,Supplies and Services,05/10/2011,407638,102086.4,REVENUE,Danwood Group Limited
Peterborough City Council,Support Services,Support Services,Supplies and Services,05/10/2011,407726,558.67,REVENUE,O2 (UK) Ltd
Peterborough City Council,Children's & Education Services - Children's Social Care,Children Looked After,Supplies and Services,05/10/2011,407747,565.87,REVENUE,Excell Network Solutions Ltd
Peterborough City Council,Children's & Education Services - Children's Social Care,Family Support Services,Employees,05/10/2011,407792,800,REVENUE,Peterborough Child Development Consultancy.
Peterborough City Council,"Highways, Roads & Transport Services","Transport planning, policy and strategy",Employees,05/10/2011,407811,2664,REVENUE,The Synergy Group
Peterborough City Council,Capital,Capital,Capital Pending Update to BS,05/10/2011,407821,21600,CAPITAL,L Garfield (Builders) Ltd
Peterborough City Council,Corporate & Democratic Core,Corporate Management,Supplies and Services,05/10/2011,407959,1254.66,REVENUE,Everything Everywhere Ltd
Peterborough City Council,Planning Services,Community Development,Supplies and Services,05/10/2011,408860,1250,REVENUE,The Voyager School
Peterborough City Council,Housing Services,Homelessness,Supplies and Services,05/10/2011,408899,1123,REVENUE,DA Rosalia Hotel
Peterborough City Council,Children's & Education Services - Children's Social Care,Other Children's & Families Services,Supplies and Services,05/10/2011,408960,777.36,REVENUE,CINTRA Ltd
Peterborough City Council,"Highways, Roads & Transport Services",Regulatory services,Supplies and Services,05/10/2011,409087,1435.8,REVENUE,VIP-System Ltd
Peterborough City Council,Planning Services,Support Services & Management Costs,Supplies and Services,05/10/2011,409216,699.13,REVENUE,Association of Town Centre Management
Peterborough City Council,Support Services,Support Services,Supplies and Services,05/10/2011,409245,1619.17,REVENUE,Royal Mail
Peterborough City Council,Children's & Education Services - Children's Social Care,Other Children's & Families Services,Supplies and Services,05/10/2011,409246,528.75,REVENUE,"Cattermull, Ms Emma"
Peterborough City Council,Support Services,Support Services,Premises,05/10/2011,409248,-853.46,REVENUE,Eastern Shires Purchasing Organisation
Peterborough City Council,Planning Services,Community Development,Supplies and Services,05/10/2011,409273,4000,REVENUE,Newborough Cricket Club
Peterborough City Council,Planning Services,Community Development,Supplies and Services,05/10/2011,409275,1000,REVENUE,Newborough & Borough Fen Over 60's
Peterborough City Council,Children's & Education Services - Children's Social Care,Support Services & Management Costs,Supplies and Services,05/10/2011,409299,700,REVENUE,HM Courts and Tribunals Service (HMCTS)
Peterborough City Council,Children's & Education Services - Children's Social Care,Support Services & Management Costs,Supplies and Services,05/10/2011,409301,700,REVENUE,HM Courts and Tribunals Service (HMCTS)
Peterborough City Council,Children's & Education Services - Children's Social Care,Support Services & Management Costs,Supplies and Services,05/10/2011,409303,700,REVENUE,HM Courts and Tribunals Service (HMCTS)
Peterborough City Council,Children's & Education Services - Education,Non-School Funding,Supplies and Services,05/10/2011,409440,2262,REVENUE,Redacted Personal Data
Peterborough City Council,Children's & Education Services - Children's Social Care,Family Support Services,Premises,05/10/2011,409556,773.78,REVENUE,Eastern Shires Purchasing Organisation
Peterborough City Council,Cultural and Related Services,Culture & Heritage,Supplies and Services,05/10/2011,409584,1050,REVENUE,Mississippi Jazzmen
Peterborough City Council,Capital,Capital,Capital Pending Update to BS,05/10/2011,409599,12966.35,CAPITAL,G D'Amore Ltd
Peterborough City Council,Children's & Education Services - Children's Social Care,Children Looked After,Supplies and Services - Transfer Payments,05/10/2011,409738,14700,REVENUE,Chelfham Mill School Ltd
Peterborough City Council,Capital,Capital,Capital Pending Update to BS,05/10/2011,409759,2880,CAPITAL,AMTEC Consulting Plc
Peterborough City Council,Capital,Capital,Capital Pending Update to BS,05/10/2011,409761,4368,CAPITAL,AMTEC Consulting Plc
Peterborough City Council,Planning Services,Economic Development,Third Party Payments,05/10/2011,409778,5741.95,REVENUE,AMTEC Consulting Plc
Peterborough City Council,Support Services,Support Services,Supplies and Services,05/10/2011,409798,6494.4,REVENUE,AMTEC Consulting Plc
Peterborough City Council,Support Services,Support Services,Supplies and Services,05/10/2011,409838,21516,REVENUE,AMTEC Consulting Plc
Peterborough City Council,Children's & Education Services - Education,Non-School Funding,Supplies and Services,05/10/2011,409858,16197.6,REVENUE,AMTEC Consulting Plc
Peterborough City Council,Deficit/(Surplus) on Trading Undertakings,Trading Account Surpluses & Deficits,Supplies and Services,05/10/2011,409878,8289.6,REVENUE,AMTEC Consulting Plc
Peterborough City Council,Environmental and Regulatory Services,Environmental Initiatives,Supplies and Services,05/10/2011,409899,9451.2,REVENUE,AMTEC Consulting Plc
Peterborough City Council,Central Services to the Public,Local Tax,Supplies and Services,05/10/2011,409938,22945.2,REVENUE,AMTEC Consulting Plc
Peterborough City Council,Support Services,Support Services,Supplies and Services,05/10/2011,409958,36000.54,REVENUE,AMTEC Consulting Plc
Peterborough City Council,Children's & Education Services - Children's Social Care,Other Children's & Families Services,Employees,05/10/2011,409959,2610.96,REVENUE,Randstad Care Ltd
Peterborough City Council,Planning Services,Economic Development,Supplies and Services,05/10/2011,409978,24950.21,REVENUE,AMTEC Consulting Plc
Peterborough City Council,Support Services,Support Services,Supplies and Services,05/10/2011,409998,11067,REVENUE,AMTEC Consulting Plc
Peterborough City Council,Adult Social Care,Service Strategy,Supplies and Services,05/10/2011,410018,49992,REVENUE,AMTEC Consulting Plc
Peterborough City Council,Support Services,Support Services,Supplies and Services,05/10/2011,410019,15876,REVENUE,AMTEC Consulting Plc
Peterborough City Council,Support Services,Support Services,Supplies and Services,05/10/2011,410020,47832,REVENUE,AMTEC Consulting Plc
Peterborough City Council,Children's & Education Services - Children's Social Care,Other Children's & Families Services,Supplies and Services,05/10/2011,410021,6000,REVENUE,Tri-x-Childcare Ltd
Peterborough City Council,Deficit/(Surplus) on Trading Undertakings,Trading Account Surpluses & Deficits,Supplies and Services,05/10/2011,410025,1053.36,REVENUE,Barron Clark Castings Ltd
Peterborough City Council,Support Services,Support Services & Management Costs,Supplies and Services,05/10/2011,410026,5040,REVENUE,AMTEC Consulting Plc
Peterborough City Council,Deficit/(Surplus) on Trading Undertakings,Trading Account Surpluses & Deficits,Supplies and Services,05/10/2011,410027,1368,REVENUE,Barron Clark Castings Ltd
Peterborough City Council,Central Services to the Public,Elections,Supplies and Services,05/10/2011,410028,4838.4,REVENUE,AMTEC Consulting Plc
Peterborough City Council,Capital,Capital,Capital Pending Update to BS,05/10/2011,410030,93271.92,CAPITAL,AMTEC Consulting Plc
Peterborough City Council,Deficit/(Surplus) on Trading Undertakings,Trading Account Surpluses & Deficits,Supplies and Services,05/10/2011,410031,555.66,REVENUE,Barron Clark Castings Ltd
Peterborough City Council,Support Services,Support Services,Supplies and Services,05/10/2011,410032,16200,REVENUE,AMTEC Consulting Plc
Peterborough City Council,Capital,Capital,Capital Pending Update to BS,05/10/2011,410034,720,CAPITAL,AMTEC Consulting Plc
Peterborough City Council,Support Services,Support Services,Supplies and Services,05/10/2011,410035,8910,REVENUE,AMTEC Consulting Plc
Peterborough City Council,Capital,Capital,Capital Pending Update to BS,05/10/2011,410036,30293.4,CAPITAL,AMTEC Consulting Plc
Peterborough City Council,Capital,Capital,Capital Pending Update to BS,05/10/2011,410038,4395.6,CAPITAL,AMTEC Consulting Plc
Peterborough City Council,Capital,Capital,Capital Pending Update to BS,05/10/2011,410040,27208.8,CAPITAL,AMTEC Consulting Plc
Peterborough City Council,Capital,Capital,Capital Pending Update to BS,05/10/2011,410042,4770,CAPITAL,AMTEC Consulting Plc
Peterborough City Council,Children's & Education Services - Education,Non-School Funding,Supplies and Services,05/10/2011,410043,1462.58,REVENUE,Danwood Fin Svcs Ltd
Peterborough City Council,Capital,Capital,Capital Pending Update to BS,05/10/2011,410044,11224.98,CAPITAL,AMTEC Consulting Plc
Peterborough City Council,Support Services,Support Services,Supplies and Services,05/10/2011,410045,1008,REVENUE,AMTEC Consulting Plc
Peterborough City Council,Support Services,Support Services,Supplies and Services,05/10/2011,410046,16128,REVENUE,AMTEC Consulting Plc
Peterborough City Council,Capital,Capital,Capital Pending Update to BS,05/10/2011,410047,16926,CAPITAL,AMTEC Consulting Plc
Peterborough City Council,Children's & Education Services - Education,Non-School Funding,Transport,05/10/2011,410079,1060.8,REVENUE,Redacted Personal Data
Peterborough City Council,Deficit/(Surplus) on Trading Undertakings,Trading Account Surpluses & Deficits,Supplies and Services,05/10/2011,410084,1059.66,REVENUE,Barron Clark Castings Ltd
Peterborough City Council,Children's & Education Services - Education,Secondary,Premises,05/10/2011,410103,806572.42,REVENUE,IIC by Education (P'boro) Ltd
Peterborough City Council,Children's & Education Services - Education,All Schools - apportion across sectors,Supplies and Services,05/10/2011,410231,646.8,REVENUE,Johnston Press Midlands Division
Peterborough City Council,Deficit/(Surplus) on Trading Undertakings,Trading Account Surpluses & Deficits,Supplies and Services,05/10/2011,410274,698.34,REVENUE,Eaton Ltd
Peterborough City Council,Children's & Education Services - Education,Non-School Funding,Employees,05/10/2011,410293,24674.67,REVENUE,Teachers Pensions
Peterborough City Council,More than one Service Area Category,More than one Service Division,Balance Sheet,05/10/2011,410295,6961.56,Balance Sheet,The Prudential Assurance Company Ltd
Peterborough City Council,Children's & Education Services - Children's Social Care,Children Looked After,Supplies and Services - Transfer Payments,05/10/2011,410298,8382.85,REVENUE,Next Steps Care Management Ltd
Peterborough City Council,More than one Service Area Category,More than one Service Division,Balance Sheet,05/10/2011,410301,4443.81,Balance Sheet,The Prudential Assurance Company Ltd
Peterborough City Council,More than one Service Area Category,More than one Service Division,Balance Sheet,05/10/2011,410304,6997.9,Balance Sheet,Teachers Pensions
Peterborough City Council,Children's & Education Services - Children's Social Care,Children Looked After,Supplies and Services - Transfer Payments,05/10/2011,410305,3454.33,REVENUE,Synergy Fostering Ltd
Peterborough City Council,Children's & Education Services - Children's Social Care,Children Looked After,Supplies and Services - Transfer Payments,05/10/2011,410306,3454.33,REVENUE,Synergy Fostering Ltd
Peterborough City Council,More than one Service Area Category,More than one Service Division,Balance Sheet,05/10/2011,410307,749089.41,Balance Sheet,Teachers Pensions
Peterborough City Council,Children's & Education Services - Children's Social Care,Children Looked After,Supplies and Services - Transfer Payments,05/10/2011,410309,3454.33,REVENUE,Synergy Fostering Ltd
Peterborough City Council,Support Services,Support Services,Supplies and Services,05/10/2011,410317,1566,REVENUE,Rics Books
Peterborough City Council,Adult Social Care,Adult Social Care,Third Party Payments,05/10/2011,410318,3305909.1,REVENUE,Peterborough PCT
Peterborough City Council,Deficit/(Surplus) on Trading Undertakings,Trading Account Surpluses & Deficits,Premises,05/10/2011,410338,-1494.83,REVENUE,Eastern Shires Purchasing Organisation
Peterborough City Council,Planning Services,Recreation & Sport,Premises,05/10/2011,410339,-1721.28,REVENUE,Eastern Shires Purchasing Organisation
Peterborough City Council,Capital,Capital,Capital Pending Update to BS,07/10/2011,393883,2475.18,CAPITAL,Portakabin Ltd
Peterborough City Council,Capital,Capital,Capital Pending Update to BS,07/10/2011,398595,2475.18,CAPITAL,Portakabin Ltd
Peterborough City Council,More than one Service Area Category,More than one Service Division,More than one Expenses Type,07/10/2011,398841,4134.9,"Mixture of Capital, Revenue and/or Balance Sheet",Rawheat Heating & Plumbing Eng.
Peterborough City Council,Support Services,Support Services,Supplies and Services,07/10/2011,398955,7734.3,REVENUE,Pinsent Masons
Peterborough City Council,Planning Services,Economic Development,Supplies and Services,07/10/2011,399498,1042.94,REVENUE,Vivacity Culture and Leisure
Peterborough City Council,"Highways, Roads & Transport Services","Transport planning, policy and strategy",Transport,07/10/2011,400279,609.91,REVENUE,Atkins Limited
Peterborough City Council,Capital,Capital,Capital Pending Update to BS,07/10/2011,400282,1195.61,CAPITAL,Atkins Limited
Peterborough City Council,Housing Services,Housing Benefits,Employees,07/10/2011,400556,10560,REVENUE,Capita Business Services Ltd
Peterborough City Council,Capital,Capital,Capital Pending Update to BS,07/10/2011,403036,2475.18,CAPITAL,Portakabin Ltd
Peterborough City Council,Capital,Capital,Capital Pending Update to BS,07/10/2011,406591,14400,CAPITAL,Atkins Limited
Peterborough City Council,Capital,Capital,Capital Pending Update to BS,07/10/2011,406592,15198.86,CAPITAL,Atkins Limited
Peterborough City Council,Children's & Education Services - Children's Social Care,Service Strategy,Employees,07/10/2011,406627,1578.9,REVENUE,Gosfield House
Peterborough City Council,Capital,Capital,Capital Pending Update to BS,07/10/2011,406837,-6801.74,CAPITAL,Atkins Limited
Peterborough City Council,"Highways, Roads & Transport Services",Highways/road (structural),Transport,07/10/2011,406843,-571.3,REVENUE,Atkins Limited
Peterborough City Council,Children's & Education Services - Children's Social Care,Children Looked After,Employees,07/10/2011,407052,1042.48,REVENUE,Randstad Care Ltd
Peterborough City Council,Children's & Education Services - Children's Social Care,Other Children's & Families Services,Employees,07/10/2011,407053,2296.37,REVENUE,Randstad Care Ltd
Peterborough City Council,Cultural and Related Services,Waste Collection,Supplies and Services,07/10/2011,407082,13029.12,REVENUE,H W Martin Waste Ltd
Peterborough City Council,More than one Service Area Category,More than one Service Division,Balance Sheet,07/10/2011,407388,1721.6,Balance Sheet,Her Majesty's Revenue and Customs
Peterborough City Council,Capital,Capital,Capital Pending Update to BS,07/10/2011,407784,171996.73,CAPITAL,Ringway Infrastructure Services
Peterborough City Council,Planning Services,Community Development,Supplies and Services,07/10/2011,408863,825,REVENUE,Southfields Community Association
Peterborough City Council,More than one Service Area Category,More than one Service Division,More than one Expenses Type,07/10/2011,409198,1545.21,REVENUE,Peterborough City Council
Peterborough City Council,Children's & Education Services - Children's Social Care,Children Looked After,Supplies and Services,07/10/2011,410206,4166.66,REVENUE,Bridgegate Drug Services
Peterborough City Council,Children's & Education Services - Children's Social Care,Children Looked After,Supplies and Services - Transfer Payments,07/10/2011,410303,1771.65,REVENUE,Synergy Fostering Ltd
Peterborough City Council,Children's & Education Services - Children's Social Care,Children Looked After,Supplies and Services - Transfer Payments,07/10/2011,410308,1771.65,REVENUE,Synergy Fostering Ltd
Peterborough City Council,Children's & Education Services - Children's Social Care,Children Looked After,Supplies and Services - Transfer Payments,07/10/2011,410340,3454.33,REVENUE,Synergy Fostering Ltd
Peterborough City Council,More than one Service Area Category,More than one Service Division,Supplies and Services,07/10/2011,410438,1088.92,REVENUE,TNT Post Midlands Ltd
Peterborough City Council,Children's & Education Services - Education,Non-School Funding,Transport,07/10/2011,410484,678,REVENUE,R T Enterprises Ltd T/A Royal Taxis
Peterborough City Council,Children's & Education Services - Education,Non-School Funding,Transport,07/10/2011,410485,1908.6,REVENUE,R T Enterprises Ltd T/A Royal Taxis
Peterborough City Council,Children's & Education Services - Education,Non-School Funding,Transport,07/10/2011,410492,1059,REVENUE,Goldstar Cabs Ltd
Peterborough City Council,Children's & Education Services - Children's Social Care,Children Looked After,Transport,07/10/2011,410510,830.7,REVENUE,Redacted Personal Data
Peterborough City Council,More than one Service Area Category,More than one Service Division,More than one Expenses Type,07/10/2011,410511,1547.65,REVENUE,Redacted Personal Data
Peterborough City Council,Children's & Education Services - Children's Social Care,Children Looked After,Transport,07/10/2011,410513,788.85,REVENUE,Redacted Personal Data
Peterborough City Council,More than one Service Area Category,More than one Service Division,Transport,07/10/2011,410514,1059.3,REVENUE,Redacted Personal Data
Peterborough City Council,Children's & Education Services - Children's Social Care,Children Looked After,More than one Expenses Type,07/10/2011,410515,673.35,REVENUE,Redacted Personal Data
Peterborough City Council,Children's & Education Services - Children's Social Care,Other Children's & Families Services,More than one Expenses Type,07/10/2011,410527,4950,REVENUE,Flick Schofield Ltd
Peterborough City Council,Support Services,Support Services,Premises,07/10/2011,410549,1880,REVENUE,Siemens Energy Services Ltd
Peterborough City Council,Support Services,Support Services,Premises,07/10/2011,410552,631.53,REVENUE,British Gas Business
Peterborough City Council,Support Services,Support Services,Premises,07/10/2011,410564,3347.52,REVENUE,Southern Electric
Peterborough City Council,Support Services,Support Services,Supplies and Services,07/10/2011,410567,8715.96,REVENUE,The Copyright Licencing Agency Ltd
Peterborough City Council,More than one Service Area Category,More than one Service Division,Equity,07/10/2011,410568,990,"Mixture of Capital, Revenue and/or Balance Sheet",City and County
Peterborough City Council,Adult Social Care,Other Adult Services,Supplies and Services,07/10/2011,410573,866.48,REVENUE,Frontier Medical
Peterborough City Council,Deficit/(Surplus) on Trading Undertakings,Trading Account Surpluses & Deficits,Supplies and Services,07/10/2011,410598,927.96,REVENUE,Barron Clark Castings Ltd
Peterborough City Council,Housing Services,Homelessness,Supplies and Services,07/10/2011,410602,960,REVENUE,Record Property Solutions
Peterborough City Council,Housing Services,Homelessness,Supplies and Services,07/10/2011,410608,550,REVENUE,Renaissance Property Mngmnt
Peterborough City Council,Housing Services,Homelessness,Supplies and Services,07/10/2011,410610,549.99,REVENUE,Renaissance Property Mngmnt
Peterborough City Council,Planning Services,Economic Development,Supplies and Services,07/10/2011,410612,627.45,REVENUE,Sublatum
Peterborough City Council,Children's & Education Services - Education,Non-School Funding,Supplies and Services,07/10/2011,410638,25796,REVENUE,Wilds Lodge School
Peterborough City Council,Children's & Education Services - Children's Social Care,Children Looked After,Supplies and Services,07/10/2011,410639,25796,REVENUE,Wilds Lodge School
Peterborough City Council,Children's & Education Services - Children's Social Care,Children Looked After,Supplies and Services,07/10/2011,410641,25796,REVENUE,Wilds Lodge School
Peterborough City Council,Children's & Education Services - Children's Social Care,Family Support Services,More than one Expenses Type,07/10/2011,410730,728.1,REVENUE,Cherry Lodge
Peterborough City Council,Court Services,Coroner's Court Service,More than one Expenses Type,07/10/2011,410733,5264.82,REVENUE,Coroners Service
Peterborough City Council,Children's & Education Services - Education,Non-School Funding,Supplies and Services,10/10/2011,406715,3111,REVENUE,Sparx Youth Project
Peterborough City Council,Children's & Education Services - Education,Secondary,Supplies and Services,10/10/2011,406771,2028,REVENUE,The Riverside Pavilion
Peterborough City Council,Children's & Education Services - Children's Social Care,Youth Justice,Supplies and Services,10/10/2011,406812,5889.6,REVENUE,CACI Limited
Peterborough City Council,Central Services to the Public,Emergency Planning,Supplies and Services,10/10/2011,406921,1500,REVENUE,Cambridgeshire Constabulary
Peterborough City Council,Children's & Education Services - Children's Social Care,Children Looked After,Supplies and Services,10/10/2011,406924,10639.2,REVENUE,Continuum Care & Educ. Group.
Peterborough City Council,Children's & Education Services - Children's Social Care,Children Looked After,Supplies and Services,10/10/2011,406925,10639.2,REVENUE,Continuum Care & Educ. Group.
Peterborough City Council,Children's & Education Services - Education,Non-School Funding,Supplies and Services,10/10/2011,406926,10639.2,REVENUE,Continuum Care & Educ. Group.
Peterborough City Council,Children's & Education Services - Education,Non-School Funding,Supplies and Services,10/10/2011,406932,10639.2,REVENUE,Continuum Care & Educ. Group.
Peterborough City Council,Children's & Education Services - Education,Non-School Funding,Supplies and Services,10/10/2011,406934,10639.2,REVENUE,Continuum Care & Educ. Group.
Peterborough City Council,Cultural and Related Services,Culture & Heritage,Supplies and Services,10/10/2011,406938,7440,REVENUE,Pearce Hire
Peterborough City Council,"Highways, Roads & Transport Services","Environmental, Safety & Routine Maintenance",Supplies and Services,10/10/2011,406982,708.86,REVENUE,Bainton & Ashton Parish Council
Peterborough City Council,Children's & Education Services - Children's Social Care,Other Children's & Families Services,Employees,10/10/2011,407109,1732.68,REVENUE,Care Recruitment UK Ltd
Peterborough City Council,"Highways, Roads & Transport Services",Highways/road (structural),Supplies and Services,10/10/2011,407142,17764.27,REVENUE,Ringway Infrastructure Services
Peterborough City Council,"Highways, Roads & Transport Services",Highways/road (structural),Supplies and Services,10/10/2011,407144,8705.21,REVENUE,Ringway Infrastructure Services
Peterborough City Council,Children's & Education Services - Children's Social Care,Other Children's & Families Services,Employees,10/10/2011,407155,1554,REVENUE,Blue Group International Ltd
Peterborough City Council,Children's & Education Services - Children's Social Care,Family Support Services,Employees,10/10/2011,407196,1081.08,REVENUE,Swim
Peterborough City Council,Children's & Education Services - Children's Social Care,Other Children's & Families Services,Employees,10/10/2011,407211,1687.2,REVENUE,Medicare First
Peterborough City Council,Environmental and Regulatory Services,"Cemetery, Crematorium & Mortuary Services",Supplies and Services,10/10/2011,407221,1535.56,REVENUE,Konica Minolta Bus.Sol. East Ltd
Peterborough City Council,Support Services,Support Services,Supplies and Services,10/10/2011,407277,1200,REVENUE,Northgate Information Solutions
Peterborough City Council,Corporate & Democratic Core,Corporate Management,Transport,10/10/2011,407281,840,REVENUE,Smooth Operators (Peterborough) Ltd
Peterborough City Council,Environmental and Regulatory Services,Regulatory services,Supplies and Services,10/10/2011,407345,2400,REVENUE,Midland Environmental Contracts Ltd
Peterborough City Council,Support Services,Support Services,Supplies and Services,10/10/2011,407501,600,REVENUE,Smooth Operators (Peterborough) Ltd
Peterborough City Council,"Highways, Roads & Transport Services","Environmental, Safety & Routine Maintenance",Supplies and Services,10/10/2011,407701,19155.24,REVENUE,ADC (East Anglia) Ltd
Peterborough City Council,"Highways, Roads & Transport Services","Environmental, Safety & Routine Maintenance",Supplies and Services,10/10/2011,407702,22757.92,REVENUE,ADC (East Anglia) Ltd
Peterborough City Council,More than one Service Area Category,More than one Service Division,Balance Sheet,10/10/2011,407705,44102.98,Balance Sheet,Peterborough Provider Services
Peterborough City Council,Adult Social Care,Adult Social Care,Supplies and Services,10/10/2011,407706,235675.26,REVENUE,Peterborough Provider Services
Peterborough City Council,Capital,Capital,Capital Pending Update to BS,10/10/2011,407785,4141.22,CAPITAL,Acrabuild (Anglia) Ltd
Peterborough City Council,"Highways, Roads & Transport Services",Public Transport,Supplies and Services,10/10/2011,408981,7599.08,REVENUE,Stagecoach in Peterborough
Peterborough City Council,Capital,Capital,Capital Pending Update to BS,10/10/2011,409137,247791.16,CAPITAL,E N Suiter & Sons Ltd
Peterborough City Council,"Highways, Roads & Transport Services","Environmental, Safety & Routine Maintenance",Supplies and Services,10/10/2011,409553,5298.52,REVENUE,Telent Technology Services Ltd
Peterborough City Council,Children's & Education Services - Children's Social Care,Support Services & Management Costs,Supplies and Services,10/10/2011,410597,945.16,REVENUE,Beech Clinic
Peterborough City Council,Corporate & Democratic Core,Democratic Representation & Managemetn,Supplies and Services,10/10/2011,410617,671.31,REVENUE,Everything Everywhere Ltd
Peterborough City Council,Support Services,Support Services & Management Costs,Supplies and Services,10/10/2011,410620,2354.15,REVENUE,Everything Everywhere Ltd
Peterborough City Council,Children's & Education Services - Children's Social Care,Support Services & Management Costs,Supplies and Services,10/10/2011,410625,3220.52,REVENUE,Everything Everywhere Ltd
Peterborough City Council,Support Services,Support Services,Premises,10/10/2011,410755,2500,REVENUE,Redacted Personal Data
Peterborough City Council,More than one Service Area Category,More than one Service Division,Transport,10/10/2011,410808,1109.7,REVENUE,Redacted Personal Data
Peterborough City Council,More than one Service Area Category,More than one Service Division,Transport,10/10/2011,410809,1827,REVENUE,Redacted Personal Data
Peterborough City Council,More than one Service Area Category,More than one Service Division,Transport,10/10/2011,410810,984.6,REVENUE,Redacted Personal Data
Peterborough City Council,Children's & Education Services - Children's Social Care,Children Looked After,Transport,10/10/2011,410811,1853.55,REVENUE,Redacted Personal Data
Peterborough City Council,Children's & Education Services - Children's Social Care,Children Looked After,Transport,10/10/2011,410814,2173.5,REVENUE,Redacted Personal Data
Peterborough City Council,Children's & Education Services - Children's Social Care,Children Looked After,Transport,10/10/2011,410816,2122.2,REVENUE,Redacted Personal Data
Peterborough City Council,Children's & Education Services - Children's Social Care,Children Looked After,Transport,10/10/2011,410817,737.1,REVENUE,Redacted Personal Data
Peterborough City Council,Support Services,Support Services,Premises,10/10/2011,410822,956.11,REVENUE,Anglian Water
Peterborough City Council,Children's & Education Services - Children's Social Care,Support Services & Management Costs,Supplies and Services,10/10/2011,410838,734.87,REVENUE,BML Psychological Consultancy
Peterborough City Council,Children's & Education Services - Education,Non-School Funding,Transport,10/10/2011,410859,1080,REVENUE,A2B Euro Cars
Peterborough City Council,Contribution of Housing Capital Receipts to Government Pool,Contribution to Housing Capital Receipts,Third Party Payments,10/10/2011,410891,1304.07,REVENUE,Dept for Communities & Local Government
Peterborough City Council,More than one Service Area Category,More than one Service Division,More than one Expenses Type,10/10/2011,410893,1630.88,REVENUE,Peterborough City Council
Peterborough City Council,More than one Service Area Category,More than one Service Division,More than one Expenses Type,10/10/2011,410894,10191.61,"Mixture of Capital, Revenue and/or Balance Sheet",Peterborough City Council
Peterborough City Council,"Highways, Roads & Transport Services","Transport planning, policy and strategy",Employees,12/10/2011,373536,1320,REVENUE,Hays Specialist Recruitment Ltd
Peterborough City Council,"Highways, Roads & Transport Services","Transport planning, policy and strategy",Employees,12/10/2011,375036,942,REVENUE,Hays Specialist Recruitment Ltd
Peterborough City Council,More than one Service Area Category,More than one Service Division,Balance Sheet,12/10/2011,394411,555.24,Balance Sheet,Redacted Personal Data
Peterborough City Council,Deficit/(Surplus) on Trading Undertakings,Trading Account Surpluses & Deficits,Premises,12/10/2011,399514,1598.62,REVENUE,Lafarge Aggregates Ltd
Peterborough City Council,Planning Services,Recreation & Sport,Premises,12/10/2011,400190,-1069.5,REVENUE,Viridor Waste Kent Ltd
Peterborough City Council,Children's & Education Services - Children's Social Care,More than one Service Division,Supplies and Services,12/10/2011,401131,930.5,REVENUE,Redacted Personal Data
Peterborough City Council,"Highways, Roads & Transport Services","Transport planning, policy and strategy",Employees,12/10/2011,401417,1386,REVENUE,Hays Specialist Recruitment Ltd
Peterborough City Council,Children's & Education Services - Children's Social Care,Other Children's & Families Services,Employees,12/10/2011,401958,1638.84,REVENUE,Sanctuary Personnel Ltd
Peterborough City Council,"Highways, Roads & Transport Services","Transport planning, policy and strategy",Employees,12/10/2011,402010,1566,REVENUE,Hays Specialist Recruitment Ltd
Peterborough City Council,Children's & Education Services - Children's Social Care,Other Children's & Families Services,Employees,12/10/2011,402012,1754.4,REVENUE,Sanctuary Personnel Ltd
Peterborough City Council,Children's & Education Services - Children's Social Care,Other Children's & Families Services,Employees,12/10/2011,402252,1575,REVENUE,Sanctuary Personnel Ltd
Peterborough City Council,Parish Council Precepts,Precepts & Levies,More than one Expenses Type,12/10/2011,403203,14500,REVENUE,Newborough Parish Council
Peterborough City Council,Capital,Capital,Capital Pending Update to BS,12/10/2011,406670,10711.2,CAPITAL,Serco Ltd
Peterborough City Council,Children's & Education Services - Children's Social Care,Other Children's & Families Services,Employees,12/10/2011,406760,1395.6,REVENUE,Sanctuary Personnel Ltd
Peterborough City Council,Capital,Capital,Capital Pending Update to BS,12/10/2011,406895,4067.7,CAPITAL,Bull & Co Ltd
Peterborough City Council,Adult Social Care,Other Adult Services,Supplies and Services,12/10/2011,407045,32606.22,REVENUE,Bridgegate Drug Services
Peterborough City Council,Adult Social Care,Other Adult Services,Supplies and Services,12/10/2011,407046,10814.22,REVENUE,Bridgegate Drug Services
Peterborough City Council,Adult Social Care,Other Adult Services,Supplies and Services,12/10/2011,407047,13744.22,REVENUE,Bridgegate Drug Services
Peterborough City Council,Adult Social Care,Other Adult Services,Supplies and Services,12/10/2011,407048,29862.22,REVENUE,Bridgegate Drug Services
Peterborough City Council,Adult Social Care,Other Adult Services,Supplies and Services,12/10/2011,407049,10861.22,REVENUE,Bridgegate Drug Services
Peterborough City Council,Children's & Education Services - Children's Social Care,Other Children's & Families Services,Employees,12/10/2011,407087,1609.5,REVENUE,Care Recruitment UK Ltd
Peterborough City Council,Children's & Education Services - Children's Social Care,Children Looked After,Supplies and Services - Transfer Payments,12/10/2011,407105,86727.5,REVENUE,"Alderwood, LLA Ltd"
Peterborough City Council,Central Services to the Public,Local Tax,Employees,12/10/2011,407171,1843.2,REVENUE,The Synergy Group
Peterborough City Council,Children's & Education Services - Children's Social Care,Support Services & Management Costs,Employees,12/10/2011,407178,1529.14,REVENUE,Randstad Care Ltd
Peterborough City Council,Children's & Education Services - Children's Social Care,Children Looked After,Employees,12/10/2011,407179,616.01,REVENUE,Randstad Care Ltd
Peterborough City Council,Children's & Education Services - Children's Social Care,Other Children's & Families Services,Employees,12/10/2011,407181,1154.26,REVENUE,Randstad Care Ltd
Peterborough City Council,Children's & Education Services - Children's Social Care,Children Looked After,Employees,12/10/2011,407193,2600.81,REVENUE,Advantage Healthcare Nursing & Care Ltd
Peterborough City Council,Planning Services,Economic Development,Employees,12/10/2011,407199,1323.9,REVENUE,Randstad CPE
Peterborough City Council,Support Services,Support Services,Employees,12/10/2011,407218,1328.33,REVENUE,Sacco Mann Ltd
Peterborough City Council,Environmental and Regulatory Services,"Cemetery, Crematorium & Mortuary Services",Premises,12/10/2011,407316,1172.77,REVENUE,Facultatieve Technologies Ltd
Peterborough City Council,Children's & Education Services - Children's Social Care,Family Support Services,Third Party Payments,12/10/2011,407326,40000,REVENUE,Caverstede Early Years Centre
Peterborough City Council,Children's & Education Services - Children's Social Care,Family Support Services,Third Party Payments,12/10/2011,407347,24698,REVENUE,Cambs & P'boro NHS Foundation Trust
Peterborough City Council,Children's & Education Services - Education,Non-School Funding,Supplies and Services,12/10/2011,407348,6662.5,REVENUE,Cambs & P'boro NHS Foundation Trust
Peterborough City Council,Children's & Education Services - Children's Social Care,Family Support Services,Third Party Payments,12/10/2011,407349,75000,REVENUE,Cambs & P'boro NHS Foundation Trust
Peterborough City Council,Children's & Education Services - Children's Social Care,Children Looked After,Supplies and Services - Transfer Payments,12/10/2011,407419,3620.8,REVENUE,Archway Care Ltd
Peterborough City Council,Children's & Education Services - Children's Social Care,Children Looked After,Supplies and Services - Transfer Payments,12/10/2011,407421,3620.8,REVENUE,Archway Care Ltd
Peterborough City Council,"Highways, Roads & Transport Services","Transport planning, policy and strategy",Supplies and Services,12/10/2011,407424,617.4,REVENUE,Johnston Press Midlands Division
Peterborough City Council,"Highways, Roads & Transport Services",Highways/road (structural),Transport,12/10/2011,407443,3273.62,REVENUE,Atkins Limited
Peterborough City Council,"Highways, Roads & Transport Services","Transport planning, policy and strategy",Transport,12/10/2011,407444,2455.58,REVENUE,Atkins Limited
Peterborough City Council,Capital,Capital,Capital Pending Update to BS,12/10/2011,407446,12000,CAPITAL,Atkins Limited
Peterborough City Council,Capital,Capital,Capital Pending Update to BS,12/10/2011,407469,13647,CAPITAL,Atkins Limited
Peterborough City Council,Capital,Capital,Capital Pending Update to BS,12/10/2011,407470,2480.63,CAPITAL,Atkins Limited
Peterborough City Council,"Highways, Roads & Transport Services","Transport planning, policy and strategy",Transport,12/10/2011,407474,876.43,REVENUE,Atkins Limited
Peterborough City Council,"Highways, Roads & Transport Services","Transport planning, policy and strategy",Transport,12/10/2011,407476,2993.04,REVENUE,Atkins Limited
Peterborough City Council,Capital,Capital,Capital Pending Update to BS,12/10/2011,407478,4407.05,CAPITAL,Atkins Limited
Peterborough City Council,"Highways, Roads & Transport Services","Transport planning, policy and strategy",Transport,12/10/2011,407479,5412.08,REVENUE,Atkins Limited
Peterborough City Council,"Highways, Roads & Transport Services","Transport planning, policy and strategy",Transport,12/10/2011,407480,6752.16,REVENUE,Atkins Limited
Peterborough City Council,More than one Service Area Category,More than one Service Division,More than one Expenses Type,12/10/2011,407481,3593.69,"Mixture of Capital, Revenue and/or Balance Sheet",Atkins Limited
Peterborough City Council,"Highways, Roads & Transport Services","Environmental, Safety & Routine Maintenance",Transport,12/10/2011,407482,8282.88,REVENUE,Atkins Limited
Peterborough City Council,Capital,Capital,Capital Pending Update to BS,12/10/2011,407484,723.72,CAPITAL,Atkins Limited
Peterborough City Council,Capital,Capital,Capital Pending Update to BS,12/10/2011,407486,1373.78,CAPITAL,Atkins Limited
Peterborough City Council,"Highways, Roads & Transport Services",Highways/road (structural),Transport,12/10/2011,407487,552.28,REVENUE,Atkins Limited
Peterborough City Council,Capital,Capital,Capital Pending Update to BS,12/10/2011,407488,1684.8,CAPITAL,Atkins Limited
Peterborough City Council,Capital,Capital,Capital Pending Update to BS,12/10/2011,407517,61418.64,CAPITAL,Harmony Roofing Serv. Ltd
Peterborough City Council,Capital,Capital,Capital Pending Update to BS,12/10/2011,407522,850.22,CAPITAL,Atkins Limited
Peterborough City Council,"Highways, Roads & Transport Services","Transport planning, policy and strategy",Transport,12/10/2011,407524,1718.83,REVENUE,Atkins Limited
Peterborough City Council,"Highways, Roads & Transport Services",Winter Service,Transport,12/10/2011,407525,6649.84,REVENUE,Atkins Limited
Peterborough City Council,Capital,Capital,Capital Pending Update to BS,12/10/2011,407527,7381.2,CAPITAL,Atkins Limited
Peterborough City Council,Environmental and Regulatory Services,"Cemetery, Crematorium & Mortuary Services",Supplies and Services,12/10/2011,407612,589.64,REVENUE,Konica Minolta Bus.Sol. East Ltd
Peterborough City Council,Children's & Education Services - Children's Social Care,Children Looked After,Premises,12/10/2011,407616,594,REVENUE,Chris Groome Decorating
Peterborough City Council,"Highways, Roads & Transport Services","Transport planning, policy and strategy",Employees,12/10/2011,407617,1332,REVENUE,Hays Specialist Recruitment Ltd
Peterborough City Council,Planning Services,Support Services & Management Costs,Supplies and Services,12/10/2011,407634,775.14,REVENUE,Serco Ltd
Peterborough City Council,"Highways, Roads & Transport Services",Street Lighting,Supplies and Services,12/10/2011,407640,12729.84,REVENUE,Volker Highways MEWS Ltd
Peterborough City Council,"Highways, Roads & Transport Services",Street Lighting,Supplies and Services,12/10/2011,407642,14853.24,REVENUE,Volker Highways MEWS Ltd
Peterborough City Council,"Highways, Roads & Transport Services",Street Lighting,Supplies and Services,12/10/2011,407643,18640.13,REVENUE,Volker Highways MEWS Ltd
Peterborough City Council,Support Services,Support Services,Supplies and Services,12/10/2011,407644,15465.6,REVENUE,Serco Ltd
Peterborough City Council,"Highways, Roads & Transport Services",Street Lighting,Supplies and Services,12/10/2011,407646,24381.24,REVENUE,Volker Highways MEWS Ltd
Peterborough City Council,Planning Services,Economic Development,Employees,12/10/2011,407659,1890,REVENUE,Hays Specialist Recruitment Ltd
Peterborough City Council,Planning Services,Economic Development,Employees,12/10/2011,407660,1425.6,REVENUE,Hays Specialist Recruitment Ltd
Peterborough City Council,Planning Services,Economic Development,Employees,12/10/2011,407663,2062.97,REVENUE,Hays Specialist Recruitment Ltd
Peterborough City Council,Children's & Education Services - Education,Secondary,Employees,12/10/2011,407725,1098.88,REVENUE,IIC by Education (P'boro) Ltd
Peterborough City Council,Capital,Capital,Capital Pending Update to BS,12/10/2011,407754,51821.44,CAPITAL,Princebuild Limited
Peterborough City Council,Planning Services,Economic Development,Employees,12/10/2011,407756,682.11,REVENUE,Redacted Personal Data
Peterborough City Council,More than one Service Area Category,More than one Service Division,Balance Sheet,12/10/2011,407757,840.99,Balance Sheet,Rossendales C B Ltd
Peterborough City Council,"Highways, Roads & Transport Services",Public Transport,Supplies and Services,12/10/2011,407758,6708,REVENUE,Stagecoach in Peterborough
Peterborough City Council,More than one Service Area Category,More than one Service Division,Supplies and Services,12/10/2011,407761,2578.84,REVENUE,TNT Post Midlands Ltd
Peterborough City Council,"Cultural, Environmental and Planning Services",Waste Collection,Supplies and Services,12/10/2011,407803,3000,REVENUE,Viridor Waste Kent Ltd
Peterborough City Council,"Highways, Roads & Transport Services","Transport planning, policy and strategy",Employees,12/10/2011,407809,1332,REVENUE,The Synergy Group
Peterborough City Council,Support Services,Support Services,Employees,12/10/2011,407835,1764,REVENUE,Sellick Partnership Group Limited
Peterborough City Council,Capital,Capital,Capital Pending Update to BS,12/10/2011,407889,4349.78,CAPITAL,Atkins Limited
Peterborough City Council,"Highways, Roads & Transport Services",Street Lighting,Premises,12/10/2011,407891,767.6,REVENUE,Atkins Limited
Peterborough City Council,Capital,Capital,Capital Pending Update to BS,12/10/2011,407894,5930.22,CAPITAL,Atkins Limited
Peterborough City Council,Capital,Capital,Capital Pending Update to BS,12/10/2011,407900,6482.69,CAPITAL,Atkins Limited
Peterborough City Council,Deficit/(Surplus) on Trading Undertakings,Trading Account Surpluses & Deficits,Supplies and Services,12/10/2011,407906,1432.7,REVENUE,Perkins Engines Co Ltd
Peterborough City Council,Capital,Capital,Capital Pending Update to BS,12/10/2011,408709,10128.21,CAPITAL,McArdle Sport - TEC Ltd
Peterborough City Council,Children's & Education Services - Children's Social Care,Children Looked After,Supplies and Services - Transfer Payments,12/10/2011,408770,2813.7,REVENUE,Foster Care Associates Ltd FCA
Peterborough City Council,Children's & Education Services - Children's Social Care,Other Children's & Families Services,Employees,12/10/2011,408771,1575,REVENUE,Sanctuary Personnel Ltd
Peterborough City Council,Children's & Education Services - Children's Social Care,Other Children's & Families Services,Employees,12/10/2011,408773,1274.4,REVENUE,Sanctuary Personnel Ltd
Peterborough City Council,Children's & Education Services - Children's Social Care,Children Looked After,Supplies and Services - Transfer Payments,12/10/2011,408777,2813.7,REVENUE,Foster Care Associates Ltd FCA
Peterborough City Council,Children's & Education Services - Children's Social Care,Children Looked After,Supplies and Services - Transfer Payments,12/10/2011,408780,3441.3,REVENUE,Foster Care Associates Ltd FCA
Peterborough City Council,Children's & Education Services - Children's Social Care,Children Looked After,Supplies and Services - Transfer Payments,12/10/2011,408781,2813.7,REVENUE,Foster Care Associates Ltd FCA
Peterborough City Council,Children's & Education Services - Children's Social Care,Children Looked After,Supplies and Services - Transfer Payments,12/10/2011,408784,2813.7,REVENUE,Foster Care Associates Ltd FCA
Peterborough City Council,Children's & Education Services - Children's Social Care,Children Looked After,Supplies and Services - Transfer Payments,12/10/2011,408791,5071.5,REVENUE,Foster Care Associates Ltd FCA
Peterborough City Council,Children's & Education Services - Children's Social Care,Children Looked After,Supplies and Services - Transfer Payments,12/10/2011,408792,3441.3,REVENUE,Foster Care Associates Ltd FCA
Peterborough City Council,Children's & Education Services - Children's Social Care,Children Looked After,Supplies and Services - Transfer Payments,12/10/2011,408795,3441.3,REVENUE,Foster Care Associates Ltd FCA
Peterborough City Council,Children's & Education Services - Children's Social Care,Children Looked After,Supplies and Services - Transfer Payments,12/10/2011,408799,1271.7,REVENUE,Foster Care Associates Ltd FCA
Peterborough City Council,Children's & Education Services - Children's Social Care,Children Looked After,Supplies and Services - Transfer Payments,12/10/2011,408803,2813.7,REVENUE,Foster Care Associates Ltd FCA
Peterborough City Council,Children's & Education Services - Children's Social Care,Children Looked After,Supplies and Services - Transfer Payments,12/10/2011,408806,2813.7,REVENUE,Foster Care Associates Ltd FCA
Peterborough City Council,Children's & Education Services - Children's Social Care,Children Looked After,Supplies and Services - Transfer Payments,12/10/2011,408812,3441.3,REVENUE,Foster Care Associates Ltd FCA
Peterborough City Council,Children's & Education Services - Children's Social Care,Children Looked After,Supplies and Services - Transfer Payments,12/10/2011,408813,3441.3,REVENUE,Foster Care Associates Ltd FCA
Peterborough City Council,Children's & Education Services - Children's Social Care,Children Looked After,Supplies and Services - Transfer Payments,12/10/2011,408814,3441.3,REVENUE,Foster Care Associates Ltd FCA
Peterborough City Council,Children's & Education Services - Children's Social Care,Children Looked After,Supplies and Services - Transfer Payments,12/10/2011,408816,3441.3,REVENUE,Foster Care Associates Ltd FCA
Peterborough City Council,Children's & Education Services - Children's Social Care,Children Looked After,Supplies and Services - Transfer Payments,12/10/2011,408821,2813.7,REVENUE,Foster Care Associates Ltd FCA
Peterborough City Council,Children's & Education Services - Children's Social Care,Family Support Services,More than one Expenses Type,12/10/2011,408857,727.92,REVENUE,PAM Recruitment Ltd
Peterborough City Council,Children's & Education Services - Children's Social Care,Family Support Services,More than one Expenses Type,12/10/2011,408858,726.84,REVENUE,PAM Recruitment Ltd
Peterborough City Council,Children's & Education Services - Children's Social Care,Family Support Services,More than one Expenses Type,12/10/2011,408859,725.22,REVENUE,PAM Recruitment Ltd
Peterborough City Council,Children's & Education Services - Children's Social Care,Family Support Services,More than one Expenses Type,12/10/2011,408861,731.16,REVENUE,PAM Recruitment Ltd
Peterborough City Council,Housing Services,Homelessness,Supplies and Services,12/10/2011,408865,786.1,REVENUE,DA Rosalia Hotel
Peterborough City Council,"Highways, Roads & Transport Services",More than one Service Division,More than one Expenses Type,12/10/2011,408942,1188,REVENUE,Outspoken Training
Peterborough City Council,Children's & Education Services - Children's Social Care,Support Services & Management Costs,Supplies and Services,12/10/2011,408947,3500,REVENUE,Everyday Ltd
Peterborough City Council,Capital,Capital,Capital Pending Update to BS,12/10/2011,408958,185935.94,CAPITAL,Princebuild Limited
Peterborough City Council,Support Services,Support Services,Third Party Payments,12/10/2011,408983,3000,REVENUE,Peterborough Training Company Ltd
Peterborough City Council,"Highways, Roads & Transport Services",Public Transport,Supplies and Services,12/10/2011,408989,34588.81,REVENUE,Stagecoach in Peterborough
Peterborough City Council,"Highways, Roads & Transport Services",Public Transport,Supplies and Services,12/10/2011,408992,4383,REVENUE,Stagecoach Viscount
Peterborough City Council,More than one Service Area Category,More than one Service Division,Supplies and Services,12/10/2011,408997,1732.43,REVENUE,TNT Post Midlands Ltd
Peterborough City Council,Support Services,Support Services,Supplies and Services,12/10/2011,409097,614.4,REVENUE,E S P Magazine
Peterborough City Council,Support Services,Support Services & Management Costs,Employees,12/10/2011,409104,717.6,REVENUE,Keep Britain Tidy
Peterborough City Council,Deficit/(Surplus) on Trading Undertakings,Trading Account Surpluses & Deficits,Supplies and Services,12/10/2011,409132,1131.7,REVENUE,Barron Clark Castings Ltd
Peterborough City Council,Children's & Education Services - Children's Social Care,Children Looked After,Employees,12/10/2011,409211,2350.34,REVENUE,Advantage Healthcare Nursing & Care Ltd
Peterborough City Council,More than one Service Area Category,More than one Service Division,More than one Expenses Type,12/10/2011,409261,644610.74,"Mixture of Capital, Revenue and/or Balance Sheet",Ringway Infrastructure Services
Peterborough City Council,Court Services,Coroner's Court Service,Supplies and Services,12/10/2011,409264,7032.42,REVENUE,P'Boro & Stamford Hosp NHS F/dation Trust
Peterborough City Council,Environmental and Regulatory Services,Waste Collection,Supplies and Services,12/10/2011,409698,23099.9,REVENUE,Organic Recycling Ltd
Peterborough City Council,Deficit/(Surplus) on Trading Undertakings,Trading Account Surpluses & Deficits,Supplies and Services,12/10/2011,410033,795.92,REVENUE,Barron Clark Castings Ltd
Peterborough City Council,Capital,Capital,Capital Pending Update to BS,12/10/2011,410039,7004.28,CAPITAL,VIX ACIS Ltd
Peterborough City Council,Capital,Capital,Capital Pending Update to BS,12/10/2011,410041,2956.8,CAPITAL,UK Power Networks (operations) Ltd
Peterborough City Council,Children's & Education Services - Education,Non-School Funding,Transport,12/10/2011,410058,3033,REVENUE,Aardvark Coaches
Peterborough City Council,Children's & Education Services - Education,Non-School Funding,Transport,12/10/2011,410059,2601,REVENUE,Aardvark Coaches
Peterborough City Council,Children's & Education Services - Education,Non-School Funding,Transport,12/10/2011,410060,2961,REVENUE,Aardvark Coaches
Peterborough City Council,Children's & Education Services - Education,Non-School Funding,Transport,12/10/2011,410061,3114,REVENUE,Aardvark Coaches
Peterborough City Council,Capital,Capital,Capital Pending Update to BS,12/10/2011,410120,20850,CAPITAL,Enterprise Managed Services Limited
Peterborough City Council,Capital,Capital,Capital Pending Update to BS,12/10/2011,410122,17892,CAPITAL,Enterprise Managed Services Limited
Peterborough City Council,Capital,Capital,Capital Pending Update to BS,12/10/2011,410123,3301.2,CAPITAL,Enterprise Managed Services Limited
Peterborough City Council,Capital,Capital,Capital Pending Update to BS,12/10/2011,410125,53006.4,CAPITAL,Enterprise Managed Services Limited
Peterborough City Council,"Highways, Roads & Transport Services",Public Transport,Supplies and Services,12/10/2011,410128,10803.59,REVENUE,National Express Ltd
Peterborough City Council,Capital,Capital,Capital Pending Update to BS,12/10/2011,410196,11820,CAPITAL,MARS (Construction) Ltd
Peterborough City Council,Capital,Capital,Capital Pending Update to BS,12/10/2011,410199,298002,CAPITAL,MARS (Construction) Ltd
Peterborough City Council,Cultural and Related Services,Tourism,Employees,12/10/2011,410213,517.63,REVENUE,Reed Personnel Services Plc
Peterborough City Council,Children's & Education Services - Education,Non-School Funding,Transport,12/10/2011,410478,2628,REVENUE,Aardvark Coaches
Peterborough City Council,Support Services,Support Services,Supplies and Services,12/10/2011,410574,5676,REVENUE,Criminal Records Bureau
Peterborough City Council,Deficit/(Surplus) on Trading Undertakings,Trading Account Surpluses & Deficits,Supplies and Services,12/10/2011,410582,1700.86,REVENUE,Barron Clark Castings Ltd
Peterborough City Council,Deficit/(Surplus) on Trading Undertakings,Trading Account Surpluses & Deficits,Supplies and Services,12/10/2011,410589,658.5,REVENUE,Barron Clark Castings Ltd
Peterborough City Council,Deficit/(Surplus) on Trading Undertakings,Trading Account Surpluses & Deficits,Supplies and Services,12/10/2011,410600,1587.36,REVENUE,Barron Clark Castings Ltd
Peterborough City Council,Capital,Capital,Capital Pending Update to BS,12/10/2011,410609,243840.06,CAPITAL,Lindum Group Ltd
Peterborough City Council,Support Services,Support Services,Premises,12/10/2011,410632,3584.66,REVENUE,Zurich Insurance Company
Peterborough City Council,More than one Service Area Category,More than one Service Division,Balance Sheet,12/10/2011,410752,822.43,Balance Sheet,Redacted Personal Data
Peterborough City Council,More than one Service Area Category,More than one Service Division,Balance Sheet,12/10/2011,410754,1354.13,Balance Sheet,Redacted Personal Data
Peterborough City Council,Support Services,Support Services,Premises,12/10/2011,410757,1744.8,REVENUE,Zurich Insurance Company
Peterborough City Council,Children's & Education Services - Education,Non-School Funding,Transport,12/10/2011,410883,3590,REVENUE,Shaws Coaches
Peterborough City Council,Support Services,Support Services & Management Costs,Employees,12/10/2011,410930,860,REVENUE,Peterborough Regional College
Peterborough City Council,Children's & Education Services - Children's Social Care,Family Support Services,Supplies and Services,12/10/2011,411574,559.16,REVENUE,Danwood Group Limited
Peterborough City Council,Children's & Education Services - Children's Social Care,Other Children's & Families Services,Supplies and Services - Transfer Payments,12/10/2011,411629,600,REVENUE,Redacted Personal Data
Peterborough City Council,Children's & Education Services - Children's Social Care,Other Children's & Families Services,Supplies and Services - Transfer Payments,12/10/2011,411630,613.6,REVENUE,Redacted Personal Data
Peterborough City Council,Children's & Education Services - Children's Social Care,Other Children's & Families Services,Supplies and Services - Transfer Payments,12/10/2011,411732,669.48,REVENUE,Redacted Personal Data
Peterborough City Council,Children's & Education Services - Children's Social Care,Children Looked After,Supplies and Services - Transfer Payments,12/10/2011,411739,616.18,REVENUE,Redacted Personal Data
Peterborough City Council,Children's & Education Services - Children's Social Care,Children Looked After,Supplies and Services - Transfer Payments,12/10/2011,411740,560.98,REVENUE,Redacted Personal Data
Peterborough City Council,Children's & Education Services - Children's Social Care,Children Looked After,Supplies and Services - Transfer Payments,12/10/2011,411741,560.98,REVENUE,Redacted Personal Data
Peterborough City Council,Children's & Education Services - Children's Social Care,Children Looked After,Supplies and Services - Transfer Payments,12/10/2011,411742,529.9,REVENUE,Redacted Personal Data
Peterborough City Council,Children's & Education Services - Children's Social Care,Children Looked After,Supplies and Services - Transfer Payments,12/10/2011,411743,560.98,REVENUE,Redacted Personal Data
Peterborough City Council,Children's & Education Services - Children's Social Care,Children Looked After,Supplies and Services - Transfer Payments,12/10/2011,411744,529.9,REVENUE,Redacted Personal Data
Peterborough City Council,Children's & Education Services - Children's Social Care,Children Looked After,Supplies and Services - Transfer Payments,12/10/2011,411746,529.9,REVENUE,Redacted Personal Data
Peterborough City Council,Children's & Education Services - Children's Social Care,Children Looked After,Supplies and Services - Transfer Payments,12/10/2011,411747,529.9,REVENUE,Redacted Personal Data
Peterborough City Council,Children's & Education Services - Children's Social Care,Children Looked After,Supplies and Services - Transfer Payments,12/10/2011,411748,529.9,REVENUE,Redacted Personal Data
Peterborough City Council,Children's & Education Services - Children's Social Care,Children Looked After,Supplies and Services - Transfer Payments,12/10/2011,411749,529.9,REVENUE,Redacted Personal Data
Peterborough City Council,Children's & Education Services - Children's Social Care,Children Looked After,Supplies and Services - Transfer Payments,12/10/2011,411750,529.9,REVENUE,Redacted Personal Data
Peterborough City Council,Children's & Education Services - Children's Social Care,Children Looked After,Supplies and Services - Transfer Payments,12/10/2011,411751,560.98,REVENUE,Redacted Personal Data
Peterborough City Council,Children's & Education Services - Children's Social Care,Children Looked After,Supplies and Services - Transfer Payments,12/10/2011,411752,661.36,REVENUE,Redacted Personal Data
Peterborough City Council,Children's & Education Services - Children's Social Care,Children Looked After,Supplies and Services - Transfer Payments,12/10/2011,411754,560.98,REVENUE,Redacted Personal Data
Peterborough City Council,Children's & Education Services - Children's Social Care,Children Looked After,Supplies and Services - Transfer Payments,12/10/2011,411755,560.98,REVENUE,Redacted Personal Data
Peterborough City Council,Children's & Education Services - Children's Social Care,Children Looked After,Supplies and Services - Transfer Payments,12/10/2011,411757,529.9,REVENUE,Redacted Personal Data
Peterborough City Council,Children's & Education Services - Children's Social Care,Children Looked After,Supplies and Services - Transfer Payments,12/10/2011,411759,560.98,REVENUE,Redacted Personal Data
Peterborough City Council,Children's & Education Services - Children's Social Care,Children Looked After,Supplies and Services - Transfer Payments,12/10/2011,411760,529.9,REVENUE,Redacted Personal Data
Peterborough City Council,Children's & Education Services - Children's Social Care,Children Looked After,Supplies and Services - Transfer Payments,12/10/2011,411761,529.9,REVENUE,Redacted Personal Data
Peterborough City Council,Children's & Education Services - Children's Social Care,Children Looked After,Supplies and Services - Transfer Payments,12/10/2011,411762,560.98,REVENUE,Redacted Personal Data
Peterborough City Council,Children's & Education Services - Children's Social Care,Children Looked After,Supplies and Services - Transfer Payments,12/10/2011,411765,529.9,REVENUE,Redacted Personal Data
Peterborough City Council,Children's & Education Services - Children's Social Care,Children Looked After,Supplies and Services - Transfer Payments,12/10/2011,411766,529.9,REVENUE,Redacted Personal Data
Peterborough City Council,Children's & Education Services - Children's Social Care,Children Looked After,Supplies and Services - Transfer Payments,12/10/2011,411767,529.9,REVENUE,Redacted Personal Data
Peterborough City Council,Children's & Education Services - Children's Social Care,Children Looked After,Supplies and Services - Transfer Payments,12/10/2011,411777,560.98,REVENUE,Redacted Personal Data
Peterborough City Council,Children's & Education Services - Children's Social Care,Children Looked After,Supplies and Services - Transfer Payments,12/10/2011,411778,885.08,REVENUE,Redacted Personal Data
Peterborough City Council,Children's & Education Services - Children's Social Care,Children Looked After,Supplies and Services - Transfer Payments,12/10/2011,411781,529.9,REVENUE,Redacted Personal Data
Peterborough City Council,Children's & Education Services - Children's Social Care,Children Looked After,Supplies and Services - Transfer Payments,12/10/2011,411782,560.98,REVENUE,Redacted Personal Data
Peterborough City Council,Children's & Education Services - Children's Social Care,Children Looked After,Supplies and Services - Transfer Payments,12/10/2011,411784,529.9,REVENUE,Redacted Personal Data
Peterborough City Council,Children's & Education Services - Children's Social Care,Children Looked After,Supplies and Services - Transfer Payments,12/10/2011,411786,560.98,REVENUE,Redacted Personal Data
Peterborough City Council,Children's & Education Services - Children's Social Care,Children Looked After,Supplies and Services - Transfer Payments,12/10/2011,411791,529.9,REVENUE,Redacted Personal Data
Peterborough City Council,Children's & Education Services - Children's Social Care,Children Looked After,Supplies and Services - Transfer Payments,12/10/2011,411796,560.98,REVENUE,Redacted Personal Data
Peterborough City Council,Children's & Education Services - Children's Social Care,Children Looked After,Supplies and Services - Transfer Payments,12/10/2011,411810,707.42,REVENUE,Redacted Personal Data
Peterborough City Council,Children's & Education Services - Children's Social Care,Children Looked After,Supplies and Services - Transfer Payments,12/10/2011,411812,529.9,REVENUE,Redacted Personal Data
Peterborough City Council,Children's & Education Services - Children's Social Care,Family Support Services,Supplies and Services,12/10/2011,411820,1148.22,REVENUE,Redacted Personal Data
Peterborough City Council,Children's & Education Services - Children's Social Care,Children Looked After,Supplies and Services - Transfer Payments,12/10/2011,411836,529.9,REVENUE,Redacted Personal Data
Peterborough City Council,Children's & Education Services - Children's Social Care,Children Looked After,Supplies and Services - Transfer Payments,12/10/2011,411842,560.98,REVENUE,Redacted Personal Data
Peterborough City Council,Children's & Education Services - Children's Social Care,Children Looked After,Supplies and Services - Transfer Payments,12/10/2011,411846,510.4,REVENUE,Redacted Personal Data
Peterborough City Council,Children's & Education Services - Children's Social Care,Children Looked After,Supplies and Services - Transfer Payments,12/10/2011,411849,885.08,REVENUE,Redacted Personal Data
Peterborough City Council,Children's & Education Services - Children's Social Care,Children Looked After,Supplies and Services - Transfer Payments,12/10/2011,411851,885.08,REVENUE,Redacted Personal Data
Peterborough City Council,Children's & Education Services - Children's Social Care,Children Looked After,Supplies and Services - Transfer Payments,12/10/2011,411852,885.08,REVENUE,Redacted Personal Data
Peterborough City Council,Children's & Education Services - Children's Social Care,Children Looked After,Supplies and Services - Transfer Payments,12/10/2011,411853,885.08,REVENUE,Redacted Personal Data
Peterborough City Council,Children's & Education Services - Children's Social Care,Children Looked After,Supplies and Services - Transfer Payments,12/10/2011,411854,885.08,REVENUE,Redacted Personal Data
Peterborough City Council,Children's & Education Services - Children's Social Care,Children Looked After,Supplies and Services - Transfer Payments,12/10/2011,411859,529.9,REVENUE,Redacted Personal Data
Peterborough City Council,Children's & Education Services - Children's Social Care,Children Looked After,Supplies and Services - Transfer Payments,12/10/2011,411874,529.9,REVENUE,Redacted Personal Data
Peterborough City Council,Children's & Education Services - Children's Social Care,Children Looked After,Supplies and Services - Transfer Payments,12/10/2011,411904,560.98,REVENUE,Redacted Personal Data
Peterborough City Council,Children's & Education Services - Children's Social Care,Children Looked After,Supplies and Services - Transfer Payments,12/10/2011,411927,526.61,REVENUE,Redacted Personal Data
Peterborough City Council,Children's & Education Services - Children's Social Care,Children Looked After,Supplies and Services - Transfer Payments,12/10/2011,411930,529.9,REVENUE,Redacted Personal Data
Peterborough City Council,Children's & Education Services - Children's Social Care,Children Looked After,Supplies and Services - Transfer Payments,12/10/2011,411932,760,REVENUE,Redacted Personal Data
Peterborough City Council,Children's & Education Services - Children's Social Care,Children Looked After,Supplies and Services - Transfer Payments,12/10/2011,411946,529.9,REVENUE,Redacted Personal Data
Peterborough City Council,Children's & Education Services - Children's Social Care,Children Looked After,Supplies and Services - Transfer Payments,12/10/2011,411967,560.98,REVENUE,Redacted Personal Data
Peterborough City Council,Children's & Education Services - Children's Social Care,Children Looked After,Supplies and Services - Transfer Payments,12/10/2011,411970,608.16,REVENUE,Redacted Personal Data
Peterborough City Council,Children's & Education Services - Children's Social Care,Children Looked After,Supplies and Services - Transfer Payments,12/10/2011,411971,2954,REVENUE,Redacted Personal Data
Peterborough City Council,Children's & Education Services - Children's Social Care,Children Looked After,Supplies and Services - Transfer Payments,12/10/2011,411976,876.61,REVENUE,Redacted Personal Data
Peterborough City Council,Children's & Education Services - Children's Social Care,Children Looked After,Supplies and Services - Transfer Payments,12/10/2011,411977,876.61,REVENUE,Redacted Personal Data
Peterborough City Council,Children's & Education Services - Children's Social Care,Children Looked After,Supplies and Services - Transfer Payments,12/10/2011,411979,684.72,REVENUE,Redacted Personal Data
Peterborough City Council,Support Services,Support Services,Premises,12/10/2011,412034,1022.87,REVENUE,Anglian Water
Peterborough City Council,Support Services,Support Services,Premises,12/10/2011,412036,1433.24,REVENUE,Southern Electric
Peterborough City Council,Children's & Education Services - Children's Social Care,Children Looked After,Supplies and Services - Transfer Payments,12/10/2011,412041,18000,REVENUE,Oracle Care Ltd (Region 2)
Peterborough City Council,Children's & Education Services - Children's Social Care,Children Looked After,Supplies and Services - Transfer Payments,12/10/2011,412042,19092.85,REVENUE,Oracle Care Ltd (Region 2)
Peterborough City Council,Children's & Education Services - Children's Social Care,Children Looked After,Supplies and Services - Transfer Payments,12/10/2011,412043,20153.57,REVENUE,Oracle Care Ltd (Region 2)
Peterborough City Council,Children's & Education Services - Children's Social Care,Support Services & Management Costs,Supplies and Services,12/10/2011,412106,568.37,REVENUE,Beech Clinic
Peterborough City Council,Children's & Education Services - Education,Non-School Funding,Transport,12/10/2011,412114,993.6,REVENUE,Woodgrange Travel Ltd t/a DiamondCars
Peterborough City Council,Children's & Education Services - Education,Non-School Funding,Transport,12/10/2011,412118,1377.36,REVENUE,Goldstar Cabs Ltd
Peterborough City Council,More than one Service Area Category,More than one Service Division,Transport,12/10/2011,412119,1166.4,REVENUE,Goldstar Cabs Ltd
Peterborough City Council,Children's & Education Services - Education,Non-School Funding,Transport,12/10/2011,412120,1113,REVENUE,Goldstar Cabs Ltd
Peterborough City Council,Children's & Education Services - Education,Non-School Funding,Transport,12/10/2011,412121,1949.4,REVENUE,Goldstar Cabs Ltd
Peterborough City Council,Children's & Education Services - Education,Non-School Funding,Transport,12/10/2011,412122,1602.72,REVENUE,Goldstar Cabs Ltd
Peterborough City Council,Children's & Education Services - Education,Non-School Funding,Transport,12/10/2011,412123,612,REVENUE,Goldstar Cabs Ltd
Peterborough City Council,Children's & Education Services - Education,Non-School Funding,Transport,12/10/2011,412124,669.6,REVENUE,Goldstar Cabs Ltd
Peterborough City Council,Children's & Education Services - Education,Non-School Funding,Transport,12/10/2011,412125,1490.4,REVENUE,Goldstar Cabs Ltd
Peterborough City Council,Children's & Education Services - Education,Non-School Funding,Transport,12/10/2011,412127,534,REVENUE,Goldstar Cabs Ltd
Peterborough City Council,Children's & Education Services - Education,Non-School Funding,Transport,12/10/2011,412128,1915.2,REVENUE,Goldstar Cabs Ltd
Peterborough City Council,Children's & Education Services - Education,Non-School Funding,Transport,12/10/2011,412129,1576.8,REVENUE,Goldstar Cabs Ltd
Peterborough City Council,More than one Service Area Category,More than one Service Division,Transport,12/10/2011,412131,1510.8,REVENUE,Goldstar Cabs Ltd
Peterborough City Council,Children's & Education Services - Education,Non-School Funding,Transport,12/10/2011,412132,756,REVENUE,Goldstar Cabs Ltd
Peterborough City Council,Children's & Education Services - Children's Social Care,Children Looked After,Supplies and Services - Transfer Payments,12/10/2011,412163,568,REVENUE,United Carpets
Peterborough City Council,Deficit/(Surplus) on Trading Undertakings,Trading Account Surpluses & Deficits,Supplies and Services,12/10/2011,412166,1937.76,REVENUE,Barron Clark Castings Ltd
Peterborough City Council,Cultural and Related Services,Support Services & Management Costs,Third Party Payments,12/10/2011,412203,6698.28,REVENUE,Vivacity Culture and Leisure
Peterborough City Council,Cultural and Related Services,Support Services & Management Costs,Third Party Payments,12/10/2011,412217,1277,REVENUE,Vivacity Culture and Leisure
Peterborough City Council,Children's & Education Services - Children's Social Care,Other Children's & Families Services,Third Party Payments,12/10/2011,412327,27500,REVENUE,Dial Peterborough
Peterborough City Council,Children's & Education Services - Education,All Schools - apportion across sectors,More than one Expenses Type,14/10/2011,368479,618.34,REVENUE,Deafblind Uk Trading Ltd
Peterborough City Council,Children's & Education Services - Children's Social Care,Family Support Services,Supplies and Services,14/10/2011,392052,51480,REVENUE,Cambs & P'boro NHS Foundation Trust
Peterborough City Council,Planning Services,Planning Policy,Supplies and Services,14/10/2011,393303,912,REVENUE,Atkins Limited
Peterborough City Council,Housing Services,Housing Benefits,Employees,14/10/2011,396384,1755,REVENUE,Badenoch & Clark
Peterborough City Council,Housing Services,Housing Benefits,Employees,14/10/2011,397836,1755,REVENUE,Badenoch & Clark
Peterborough City Council,Housing Services,Housing Benefits,Employees,14/10/2011,398498,1807.66,REVENUE,Badenoch & Clark
Peterborough City Council,Housing Services,Housing Benefits,Employees,14/10/2011,399869,1140,REVENUE,The Synergy Group
Peterborough City Council,Housing Services,Housing Benefits,Employees,14/10/2011,399884,1755,REVENUE,Badenoch & Clark
Peterborough City Council,"Highways, Roads & Transport Services",Highways/road (structural),Transport,14/10/2011,400262,846.53,REVENUE,Atkins Limited
Peterborough City Council,"Highways, Roads & Transport Services","Transport planning, policy and strategy",Transport,14/10/2011,400281,10312.25,REVENUE,Atkins Limited
Peterborough City Council,"Highways, Roads & Transport Services",Highways/road (structural),Transport,14/10/2011,400567,3273.62,REVENUE,Atkins Limited
Peterborough City Council,"Highways, Roads & Transport Services",Highways/road (structural),Transport,14/10/2011,400569,3273.62,REVENUE,Atkins Limited
Peterborough City Council,Housing Services,Housing Benefits,Employees,14/10/2011,401195,1521,REVENUE,The Synergy Group
Peterborough City Council,Housing Services,Housing Benefits,Employees,14/10/2011,401196,1185,REVENUE,The Synergy Group
Peterborough City Council,Housing Services,Housing Benefits,Employees,14/10/2011,401199,1642.2,REVENUE,Badenoch & Clark
Peterborough City Council,"Highways, Roads & Transport Services",Highways/road (structural),Transport,14/10/2011,401511,3273.62,REVENUE,Atkins Limited
Peterborough City Council,"Highways, Roads & Transport Services","Transport planning, policy and strategy",Transport,14/10/2011,401515,2198.69,REVENUE,Atkins Limited
Peterborough City Council,"Highways, Roads & Transport Services",Highways/road (structural),Transport,14/10/2011,401517,540,REVENUE,Atkins Limited
Peterborough City Council,Housing Services,Housing Benefits,Employees,14/10/2011,401518,1642.2,REVENUE,Badenoch & Clark
Peterborough City Council,Housing Services,Housing Benefits,Employees,14/10/2011,401527,1126.01,REVENUE,The Synergy Group
Peterborough City Council,Housing Services,Housing Benefits,Employees,14/10/2011,401530,1065.6,REVENUE,The Synergy Group
Peterborough City Council,Housing Services,Housing Benefits,Employees,14/10/2011,401843,1528.8,REVENUE,The Synergy Group
Peterborough City Council,Housing Services,Housing Benefits,Employees,14/10/2011,401859,662.4,REVENUE,The Synergy Group
Peterborough City Council,Housing Services,Housing Benefits,Employees,14/10/2011,402230,945.56,REVENUE,The Synergy Group
Peterborough City Council,Housing Services,Housing Benefits,Employees,14/10/2011,402435,1110,REVENUE,The Synergy Group
Peterborough City Council,Support Services,Support Services,Employees,14/10/2011,402763,1278.52,REVENUE,Law Absolute (PS2) Ltd
Peterborough City Council,Housing Services,Housing Benefits,Employees,14/10/2011,403190,931.13,REVENUE,The Synergy Group
Peterborough City Council,Housing Services,Housing Benefits,Employees,14/10/2011,403191,1039.39,REVENUE,The Synergy Group
Peterborough City Council,Housing Services,Housing Benefits,Employees,14/10/2011,406452,1248.72,REVENUE,The Synergy Group
Peterborough City Council,Housing Services,Housing Benefits,Employees,14/10/2011,406464,624,REVENUE,The Synergy Group
Peterborough City Council,Housing Services,Housing Benefits,Employees,14/10/2011,406465,1207.5,REVENUE,The Synergy Group
Peterborough City Council,Housing Services,Housing Benefits,Employees,14/10/2011,406472,1658.63,REVENUE,Badenoch & Clark
Peterborough City Council,Housing Services,Housing Benefits,Employees,14/10/2011,406775,1510.82,REVENUE,Badenoch & Clark
Peterborough City Council,Support Services,Support Services,Employees,14/10/2011,406814,1287.72,REVENUE,Law Absolute (PS2) Ltd
Peterborough City Council,Housing Services,Housing Benefits,Employees,14/10/2011,407126,1707.89,REVENUE,Badenoch & Clark
Peterborough City Council,Deficit/(Surplus) on Trading Undertakings,Trading Account Surpluses & Deficits,Premises,14/10/2011,407170,23530.46,REVENUE,Frederick F Smith (Builders) Ltd
Peterborough City Council,Housing Services,Housing Benefits,Employees,14/10/2011,407172,1357.5,REVENUE,The Synergy Group
Peterborough City Council,Capital,Capital,Capital Pending Update to BS,14/10/2011,407897,7606.97,CAPITAL,Atkins Limited
Peterborough City Council,Capital,Capital,Capital Pending Update to BS,14/10/2011,410092,1178.4,CAPITAL,UK Power Networks (operations) Ltd
Peterborough City Council,Capital,Capital,Capital Pending Update to BS,14/10/2011,410099,2445.6,CAPITAL,UK Power Networks (operations) Ltd
Peterborough City Council,Capital,Capital,Capital Pending Update to BS,14/10/2011,410104,2199.6,CAPITAL,UK Power Networks (operations) Ltd
Peterborough City Council,Capital,Capital,Capital Pending Update to BS,14/10/2011,410190,35617.2,CAPITAL,Enterprise Managed Services Limited
Peterborough City Council,Capital,Capital,Capital Pending Update to BS,14/10/2011,410195,4158,CAPITAL,Enterprise Managed Services Limited
Peterborough City Council,Capital,Capital,Capital Pending Update to BS,14/10/2011,410258,11092.8,CAPITAL,Enterprise Managed Services Limited
Peterborough City Council,Capital,Capital,Capital Pending Update to BS,14/10/2011,410272,72243.6,CAPITAL,Enterprise Managed Services Limited
Peterborough City Council,Capital,Capital,Capital Pending Update to BS,14/10/2011,410276,613.2,CAPITAL,Enterprise Managed Services Limited
Peterborough City Council,Capital,Capital,Capital Pending Update to BS,14/10/2011,410279,78084,CAPITAL,Enterprise Managed Services Limited
Peterborough City Council,Capital,Capital,Capital Pending Update to BS,14/10/2011,410283,20574,CAPITAL,Enterprise Managed Services Limited
Peterborough City Council,Capital,Capital,Capital Pending Update to BS,14/10/2011,410285,3528,CAPITAL,Enterprise Managed Services Limited
Peterborough City Council,Capital,Capital,Capital Pending Update to BS,14/10/2011,410287,69079.2,CAPITAL,Enterprise Managed Services Limited
Peterborough City Council,Capital,Capital,Capital Pending Update to BS,14/10/2011,410290,112828.8,CAPITAL,Enterprise Managed Services Limited
Peterborough City Council,Housing Services,Homelessness,Supplies and Services,14/10/2011,410727,872.35,REVENUE,Language Line Ltd
Peterborough City Council,Children's & Education Services - Education,Non-School Funding,Supplies and Services,14/10/2011,410761,1923.9,REVENUE,Anna-Ca-Soo Day Nursery
Peterborough City Council,Children's & Education Services - Education,Non-School Funding,Supplies and Services,14/10/2011,410763,1355.2,REVENUE,Carousel Day Nursery
Peterborough City Council,Children's & Education Services - Education,Non-School Funding,Supplies and Services,14/10/2011,410765,2545.84,REVENUE,Caverstede Early Years Centre
Peterborough City Council,Children's & Education Services - Education,Non-School Funding,Supplies and Services,14/10/2011,410768,566.28,REVENUE,Birchtree Pre-School
Peterborough City Council,More than one Service Area Category,More than one Service Division,More than one Expenses Type,14/10/2011,410771,5731,"Mixture of Capital, Revenue and/or Balance Sheet",Casbon Building Services
Peterborough City Council,More than one Service Area Category,More than one Service Division,More than one Expenses Type,14/10/2011,410772,4141,"Mixture of Capital, Revenue and/or Balance Sheet",Allworks Home Improvements Ltd
Peterborough City Council,More than one Service Area Category,More than one Service Division,More than one Expenses Type,14/10/2011,410887,4390,"Mixture of Capital, Revenue and/or Balance Sheet",Allworks Home Improvements Ltd
Peterborough City Council,More than one Service Area Category,More than one Service Division,More than one Expenses Type,14/10/2011,410889,3554,"Mixture of Capital, Revenue and/or Balance Sheet",Allworks Home Improvements Ltd
Peterborough City Council,"Highways, Roads & Transport Services",Public Transport,Third Party Payments,14/10/2011,410895,2370.99,REVENUE,Orton Comm. Transport Assoc. Ltd
Peterborough City Council,Children's & Education Services - Children's Social Care,Other Children's & Families Services,Supplies and Services,14/10/2011,412143,2939.08,REVENUE,Social Support Limited
Peterborough City Council,Children's & Education Services - Children's Social Care,Other Children's & Families Services,Supplies and Services,14/10/2011,412144,3399.94,REVENUE,Social Support Limited
Peterborough City Council,Children's & Education Services - Children's Social Care,Other Children's & Families Services,Supplies and Services,14/10/2011,412146,3133.74,REVENUE,Social Support Limited
Peterborough City Council,Children's & Education Services - Children's Social Care,Other Children's & Families Services,Supplies and Services,14/10/2011,412193,2751.48,REVENUE,Social Support Limited
Peterborough City Council,Children's & Education Services - Children's Social Care,Other Children's & Families Services,Supplies and Services,14/10/2011,412196,2975.92,REVENUE,Social Support Limited
Peterborough City Council,Children's & Education Services - Children's Social Care,Other Children's & Families Services,Supplies and Services,14/10/2011,412198,3301.74,REVENUE,Social Support Limited
Peterborough City Council,Children's & Education Services - Children's Social Care,Other Children's & Families Services,Supplies and Services,14/10/2011,412214,2974.6,REVENUE,Social Support Limited
Peterborough City Council,Children's & Education Services - Children's Social Care,Children Looked After,Transport,14/10/2011,412412,1729.8,REVENUE,Redacted Personal Data
Peterborough City Council,Children's & Education Services - Children's Social Care,Other Children's & Families Services,Supplies and Services,14/10/2011,412430,2969.46,REVENUE,Social Support Limited
Peterborough City Council,Capital,Capital,Capital Pending Update to BS,14/10/2011,412443,4554.8,CAPITAL,Alban Shipping Ltd
Peterborough City Council,Capital,Capital,Capital Pending Update to BS,14/10/2011,412447,4706.64,CAPITAL,Alban Shipping Ltd
Peterborough City Council,Deficit/(Surplus) on Trading Undertakings,Trading Account Surpluses & Deficits,Supplies and Services,14/10/2011,412466,716.88,REVENUE,Barron Clark Castings Ltd
Peterborough City Council,Capital,Capital,Capital Pending Update to BS,14/10/2011,412476,3480,CAPITAL,"Shaw, Mr David"
Peterborough City Council,Deficit/(Surplus) on Trading Undertakings,Trading Account Surpluses & Deficits,Premises,14/10/2011,412483,36000,REVENUE,Tesam Distribution Ltd
Peterborough City Council,Children's & Education Services - Children's Social Care,Family Support Services,Supplies and Services,14/10/2011,412529,-2999.75,REVENUE,Cambs & P'boro NHS Foundation Trust
Peterborough City Council,More than one Service Area Category,More than one Service Division,Equity,14/10/2011,412559,3450.2,"Mixture of Capital, Revenue and/or Balance Sheet",Buckles Solicitors LLP
Peterborough City Council,Adult Social Care,Other Adult Services,Third Party Payments,14/10/2011,412595,16224.33,REVENUE,Bridgegate Drug Services
Peterborough City Council,Adult Social Care,Other Adult Services,Third Party Payments,14/10/2011,412597,48909.33,REVENUE,Bridgegate Drug Services
Peterborough City Council,Adult Social Care,Other Adult Services,Third Party Payments,14/10/2011,412598,43173,REVENUE,Bridgegate Drug Services
Peterborough City Council,Children's & Education Services - Children's Social Care,Children Looked After,Supplies and Services,14/10/2011,412616,-1390,REVENUE,Redacted Personal Data
Peterborough City Council,Adult Social Care,Other Adult Services,Third Party Payments,14/10/2011,412651,16221.33,REVENUE,Bridgegate Drug Services
Peterborough City Council,Adult Social Care,Other Adult Services,Third Party Payments,14/10/2011,412652,20616,REVENUE,Bridgegate Drug Services
Peterborough City Council,Planning Services,Economic Development,Employees,17/10/2011,396405,700,REVENUE,Mymar Computer Services Ltd
Peterborough City Council,Children's & Education Services - Children's Social Care,Other Children's & Families Services,Employees,17/10/2011,398061,1078.56,REVENUE,Service Care Solutions Ltd
Peterborough City Council,Children's & Education Services - Children's Social Care,Children Looked After,Supplies and Services - Transfer Payments,17/10/2011,398152,4020,REVENUE,Key2
Peterborough City Council,Children's & Education Services - Children's Social Care,Family Support Services,Supplies and Services,17/10/2011,401987,643.12,REVENUE,Sahara Community Care Services
Peterborough City Council,Children's & Education Services - Children's Social Care,Family Support Services,Supplies and Services,17/10/2011,401990,804.4,REVENUE,Sahara Community Care Services
Peterborough City Council,Children's & Education Services - Children's Social Care,Family Support Services,Supplies and Services,17/10/2011,401991,728.79,REVENUE,Sahara Community Care Services
Peterborough City Council,Environmental and Regulatory Services,Flood Defence & Land Drainage,Supplies and Services,17/10/2011,406731,7622.4,REVENUE,L A Jackson
Peterborough City Council,Children's & Education Services - Children's Social Care,Other Children's & Families Services,Employees,17/10/2011,407088,1750.68,REVENUE,Care Recruitment UK Ltd
Peterborough City Council,Children's & Education Services - Children's Social Care,Children Looked After,Supplies and Services - Transfer Payments,17/10/2011,407268,7124.8,REVENUE,Archway Care Ltd
Peterborough City Council,Children's & Education Services - Children's Social Care,Children Looked After,Supplies and Services - Transfer Payments,17/10/2011,407272,9811.2,REVENUE,Archway Care Ltd
Peterborough City Council,Children's & Education Services - Children's Social Care,Children Looked After,Supplies and Services - Transfer Payments,17/10/2011,407423,5431.2,REVENUE,Archway Care Ltd
Peterborough City Council,Deficit/(Surplus) on Trading Undertakings,Trading Account Surpluses & Deficits,Supplies and Services,17/10/2011,407426,2160,REVENUE,Barker Storey Matthews
Peterborough City Council,Children's & Education Services - Children's Social Care,Children Looked After,Supplies and Services - Transfer Payments,17/10/2011,407427,3620.8,REVENUE,Archway Care Ltd
Peterborough City Council,Children's & Education Services - Education,Non-School Funding,Premises,17/10/2011,407498,6000,REVENUE,Bretton Parish Council
Peterborough City Council,Capital,Capital,Capital Pending Update to BS,17/10/2011,407504,2571.6,CAPITAL,Hyder Consulting (UK) Ltd
Peterborough City Council,Support Services,Support Services,Support Services,17/10/2011,407523,1200,REVENUE,The Assoc of Corporate Treasurers
Peterborough City Council,Children's & Education Services - Children's Social Care,Other Children's & Families Services,Employees,17/10/2011,407535,1449,REVENUE,Blue Group International Ltd
Peterborough City Council,Children's & Education Services - Education,Non-School Funding,Employees,17/10/2011,407608,14629.1,REVENUE,Education Personnel Management Ltd
Peterborough City Council,Support Services,Support Services,Employees,17/10/2011,407613,516,REVENUE,LGG
Peterborough City Council,Children's & Education Services - Children's Social Care,Children Looked After,Supplies and Services - Transfer Payments,17/10/2011,407635,14614.33,REVENUE,Continuum Care & Educ. Group.
Peterborough City Council,Children's & Education Services - Children's Social Care,Children Looked After,Supplies and Services - Transfer Payments,17/10/2011,407637,11957.01,REVENUE,Continuum Care & Educ. Group.
Peterborough City Council,"Highways, Roads & Transport Services",Parking Services,Employees,17/10/2011,407650,528,REVENUE,Unity Recruitment Ltd
Peterborough City Council,More than one Service Area Category,More than one Service Division,More than one Expenses Type,17/10/2011,407655,71372.52,"Mixture of Capital, Revenue and/or Balance Sheet",Volker Highways MEWS Ltd
Peterborough City Council,Children's & Education Services - Children's Social Care,Service Strategy,Employees,17/10/2011,407665,874.5,REVENUE,Redacted Personal Data
Peterborough City Council,Children's & Education Services - Education,Non-School Funding,Supplies and Services,17/10/2011,407789,4421,REVENUE,Surrey County Council
Peterborough City Council,Children's & Education Services - Children's Social Care,Other Children's & Families Services,Third Party Payments,17/10/2011,407818,5000,REVENUE,Family Voice Peterborough
Peterborough City Council,Children's & Education Services - Education,Non-School Funding,Supplies and Services,17/10/2011,407836,34146,REVENUE,Capita Absence Management Services Ltd
Peterborough City Council,Children's & Education Services - Children's Social Care,Children Looked After,Supplies and Services - Transfer Payments,17/10/2011,407853,9247.08,REVENUE,Lovell's Hall
Peterborough City Council,Children's & Education Services - Children's Social Care,Management and support services,Premises,17/10/2011,407854,2280,REVENUE,Nick Smith Building & Maintenance
Peterborough City Council,Children's & Education Services - Children's Social Care,Children Looked After,More than one Expenses Type,17/10/2011,407855,11512.84,REVENUE,Lovell's Hall
Peterborough City Council,Children's & Education Services - Education,Non-School Funding,Supplies and Services,17/10/2011,407860,23352.29,REVENUE,Priors Court School
Peterborough City Council,Children's & Education Services - Children's Social Care,Support Services & Management Costs,Employees,17/10/2011,408744,2500,REVENUE,Anglia Ruskin University
Peterborough City Council,Children's & Education Services - Children's Social Care,Children Looked After,Supplies and Services - Transfer Payments,17/10/2011,408747,5913.25,REVENUE,Heath Farm Family Services Ltd
Peterborough City Council,Children's & Education Services - Children's Social Care,Children Looked After,Supplies and Services - Transfer Payments,17/10/2011,408758,8270.18,REVENUE,Heath Farm Family Services Ltd
Peterborough City Council,Children's & Education Services - Children's Social Care,Support Services & Management Costs,Employees,17/10/2011,408760,2500,REVENUE,Anglia Ruskin University
Peterborough City Council,Children's & Education Services - Children's Social Care,Support Services & Management Costs,Employees,17/10/2011,408762,2500,REVENUE,Anglia Ruskin University
Peterborough City Council,Children's & Education Services - Children's Social Care,Support Services & Management Costs,Employees,17/10/2011,408767,2160,REVENUE,Redacted Personal Data
Peterborough City Council,Children's & Education Services - Children's Social Care,Other Children's & Families Services,Employees,17/10/2011,408829,1687.2,REVENUE,Medicare First
Peterborough City Council,Cultural and Related Services,Culture & Heritage,Supplies and Services,17/10/2011,408880,524.8,REVENUE,Triple SSS Limited
Peterborough City Council,Children's & Education Services - Education,Secondary,Supplies and Services,17/10/2011,408904,29160,REVENUE,UCAS
Peterborough City Council,Children's & Education Services - Children's Social Care,Family Support Services,Employees,17/10/2011,408906,1085.4,REVENUE,Swim
Peterborough City Council,Central Services to the Public,Elections,Supplies and Services,17/10/2011,408939,9151.63,REVENUE,Mail and Print Services Ltd
Peterborough City Council,Cultural and Related Services,Culture & Heritage,Employees,17/10/2011,409107,600,REVENUE,The Morton Patnership
Peterborough City Council,More than one Service Area Category,More than one Service Division,Balance Sheet,17/10/2011,409342,697.25,Balance Sheet,Peterborough Client Monies
Peterborough City Council,Children's & Education Services - Children's Social Care,Family Support Services,Supplies and Services - Transfer Payments,17/10/2011,409577,841.39,REVENUE,Arjo Ltd
Peterborough City Council,Housing Services,Homelessness,Supplies and Services,17/10/2011,409779,702.55,REVENUE,Euro RSCG Riley Ltd
Peterborough City Council,Environmental and Regulatory Services,"Cemetery, Crematorium & Mortuary Services",Supplies and Services,17/10/2011,409799,10780.01,REVENUE,"Strickland, Mr A M"
Peterborough City Council,Children's & Education Services - Children's Social Care,Family Support Services,Employees,17/10/2011,410300,4363.2,REVENUE,Accora
Peterborough City Council,Capital,Capital,Capital Pending Update to BS,17/10/2011,410616,1573795.2,CAPITAL,Kier Eastern
Peterborough City Council,Children's & Education Services - Education,Non-School Funding,Third Party Payments,17/10/2011,412142,5241.6,REVENUE,National Childminding Association
Peterborough City Council,Environmental and Regulatory Services,Waste Disposal,Supplies and Services,17/10/2011,412358,4476.5,REVENUE,Danwood Group Limited
Peterborough City Council,Support Services,Support Services,Premises,17/10/2011,412362,34168.49,REVENUE,Southern Electric
Peterborough City Council,Children's & Education Services - Education,Secondary,Premises,17/10/2011,412463,1307.49,REVENUE,Southern Electric
Peterborough City Council,Children's & Education Services - Education,Secondary,Premises,17/10/2011,412464,5827.5,REVENUE,Southern Electric
Peterborough City Council,Children's & Education Services - Education,Secondary,Premises,17/10/2011,412465,4902.4,REVENUE,Southern Electric
Peterborough City Council,Central Services to the Public,Elections,Supplies and Services,17/10/2011,412538,1278.2,REVENUE,Royal Mail
Peterborough City Council,Central Services to the Public,Elections,Supplies and Services,17/10/2011,412543,11056.09,REVENUE,Mail and Print Services Ltd
Peterborough City Council,Central Services to the Public,Elections,Supplies and Services,17/10/2011,412613,2318.34,REVENUE,Royal Mail
Peterborough City Council,Housing Services,Homelessness,Supplies and Services,17/10/2011,412673,549.99,REVENUE,Rooms 4 U
Peterborough City Council,More than one Service Area Category,More than one Service Division,Equity,17/10/2011,412680,123799.8,"Mixture of Capital, Revenue and/or Balance Sheet",Redacted Personal Data
Peterborough City Council,Adult Social Care,Other Adult Services,Third Party Payments,17/10/2011,412702,2214.02,REVENUE,TTPCC Ltd
Peterborough City Council,Children's & Education Services - Education,Non-School Funding,Supplies and Services,17/10/2011,412728,9438,REVENUE,St Josephs Day Nursery
Peterborough City Council,Children's & Education Services - Education,Non-School Funding,Supplies and Services,17/10/2011,412731,677.6,REVENUE,Peterborough Regional College
Peterborough City Council,Children's & Education Services - Education,Non-School Funding,Supplies and Services,17/10/2011,412733,617.1,REVENUE,Manor House Nursery School
Peterborough City Council,Children's & Education Services - Education,Non-School Funding,Supplies and Services,17/10/2011,412736,2294.16,REVENUE,Bretton Community Pre-School
Peterborough City Council,Children's & Education Services - Education,Non-School Funding,Supplies and Services,17/10/2011,412739,1355.2,REVENUE,East Community Playgroup
Peterborough City Council,Children's & Education Services - Education,Non-School Funding,Supplies and Services,17/10/2011,412740,677.6,REVENUE,Happy Days Playgroup
Peterborough City Council,Children's & Education Services - Education,Non-School Funding,Supplies and Services,17/10/2011,412742,4840,REVENUE,Herlington Pre-School
Peterborough City Council,Children's & Education Services - Education,Non-School Funding,Supplies and Services,17/10/2011,412745,580.8,REVENUE,Parnwell Family Project Playgroup
Peterborough City Council,Children's & Education Services - Children's Social Care,Children Looked After,Transport,17/10/2011,412746,1729.8,REVENUE,Redacted Personal Data
Peterborough City Council,Children's & Education Services - Education,Non-School Funding,Transport,17/10/2011,412771,1262.4,REVENUE,Goldstar Cabs Ltd
Peterborough City Council,Children's & Education Services - Education,Non-School Funding,Transport,17/10/2011,412772,1227,REVENUE,Goldstar Cabs Ltd
Peterborough City Council,Environmental and Regulatory Services,Environmental Initiatives,Supplies and Services,17/10/2011,412782,12117.36,REVENUE,Pinsent Masons
Peterborough City Council,Children's & Education Services - Education,Secondary,More than one Expenses Type,17/10/2011,412784,602.81,REVENUE,Fletton Student Support Centre
Peterborough City Council,More than one Service Area Category,More than one Service Division,Balance Sheet,17/10/2011,412792,622459.58,Balance Sheet,Cambridgeshire County Council
Peterborough City Council,More than one Service Area Category,More than one Service Division,Balance Sheet,17/10/2011,412794,232671.58,Balance Sheet,Cambridgeshire County Council
Peterborough City Council,More than one Service Area Category,More than one Service Division,Balance Sheet,17/10/2011,412795,2905.04,Balance Sheet,Cambridgeshire County Council
Peterborough City Council,More than one Service Area Category,More than one Service Division,Balance Sheet,17/10/2011,412796,932.06,Balance Sheet,Cambridgeshire County Council
Peterborough City Council,More than one Service Area Category,More than one Service Division,Balance Sheet,17/10/2011,412797,116809.77,Balance Sheet,HM Revenues & Customs
Peterborough City Council,More than one Service Area Category,More than one Service Division,Balance Sheet,17/10/2011,412799,9146.36,Balance Sheet,HM Revenues & Customs
Peterborough City Council,More than one Service Area Category,More than one Service Division,Balance Sheet,17/10/2011,412800,8185.89,Balance Sheet,HM Revenues & Customs
Peterborough City Council,More than one Service Area Category,More than one Service Division,Balance Sheet,17/10/2011,412801,4556.61,Balance Sheet,HM Revenues & Customs
Peterborough City Council,More than one Service Area Category,More than one Service Division,Balance Sheet,17/10/2011,412803,1467718.57,Balance Sheet,HM Revenues & Customs
Peterborough City Council,Children's & Education Services - Children's Social Care,More than one Service Division,More than one Expenses Type,17/10/2011,412806,1082.29,REVENUE,Children & Families Looked After Children
Peterborough City Council,Children's & Education Services - Children's Social Care,More than one Service Division,Supplies and Services,17/10/2011,412811,1163.64,REVENUE,Children & Families Looked After Children
Peterborough City Council,Children's & Education Services - Children's Social Care,Other Children's & Families Services,Supplies and Services,17/10/2011,412815,568,REVENUE,Redacted Personal Data
Peterborough City Council,Children's & Education Services - Children's Social Care,Children Looked After,Supplies and Services - Transfer Payments,17/10/2011,412820,1826.35,REVENUE,PC Homes
Peterborough City Council,Children's & Education Services - Children's Social Care,Children Looked After,Supplies and Services - Transfer Payments,17/10/2011,412822,712.99,REVENUE,PC Homes
Peterborough City Council,Children's & Education Services - Children's Social Care,Children Looked After,Supplies and Services - Transfer Payments,17/10/2011,412823,712.99,REVENUE,PC Homes
Peterborough City Council,Children's & Education Services - Children's Social Care,Other Children's & Families Services,Third Party Payments,17/10/2011,412831,4000,REVENUE,Blumint
Peterborough City Council,More than one Service Area Category,More than one Service Division,More than one Expenses Type,17/10/2011,412872,24997.36,"Mixture of Capital, Revenue and/or Balance Sheet",Burmor Construction
Peterborough City Council,More than one Service Area Category,More than one Service Division,More than one Expenses Type,17/10/2011,412873,4720,"Mixture of Capital, Revenue and/or Balance Sheet",P F S Builders & Contractors
Peterborough City Council,More than one Service Area Category,More than one Service Division,More than one Expenses Type,17/10/2011,412875,4568,"Mixture of Capital, Revenue and/or Balance Sheet",Warics Ltd
Peterborough City Council,"Highways, Roads & Transport Services","Transport planning, policy and strategy",Transport,17/10/2011,412876,2906.66,REVENUE,Atkins Limited
Peterborough City Council,"Highways, Roads & Transport Services","Transport planning, policy and strategy",Transport,17/10/2011,412877,1740,REVENUE,Atkins Limited
Peterborough City Council,More than one Service Area Category,More than one Service Division,More than one Expenses Type,17/10/2011,412882,1600,"Mixture of Capital, Revenue and/or Balance Sheet",EMS Stairlifts
Peterborough City Council,More than one Service Area Category,More than one Service Division,More than one Expenses Type,17/10/2011,412884,5110,"Mixture of Capital, Revenue and/or Balance Sheet",Obam Domestic Lift Services Ltd
Peterborough City Council,Children's & Education Services - Children's Social Care,More than one Service Division,Supplies and Services,17/10/2011,412885,1134.95,REVENUE,Children & Families Looked After Children
Peterborough City Council,More than one Service Area Category,More than one Service Division,More than one Expenses Type,17/10/2011,412886,2020,"Mixture of Capital, Revenue and/or Balance Sheet",Ransome Engineering Services Ltd
Peterborough City Council,More than one Service Area Category,More than one Service Division,More than one Expenses Type,17/10/2011,412887,1160,"Mixture of Capital, Revenue and/or Balance Sheet",Obam Domestic Lift Services Ltd
Peterborough City Council,More than one Service Area Category,More than one Service Division,More than one Expenses Type,17/10/2011,412888,4038,"Mixture of Capital, Revenue and/or Balance Sheet",S R K Engineering
Peterborough City Council,More than one Service Area Category,More than one Service Division,More than one Expenses Type,17/10/2011,412889,3130.95,"Mixture of Capital, Revenue and/or Balance Sheet",Warics Ltd
Peterborough City Council,Children's & Education Services - Children's Social Care,More than one Service Division,More than one Expenses Type,17/10/2011,412890,1011.13,REVENUE,Children & Families Looked After Children
Peterborough City Council,Children's & Education Services - Children's Social Care,More than one Service Division,More than one Expenses Type,17/10/2011,412892,1506.42,REVENUE,Children & Families Looked After Children
Peterborough City Council,Cultural and Related Services,Recreation & Sport,Supplies and Services,19/10/2011,390966,4548,REVENUE,Athene Communications
Peterborough City Council,Cultural and Related Services,Recreation & Sport,Supplies and Services,19/10/2011,396340,2400,REVENUE,Athene Communications
Peterborough City Council,Cultural and Related Services,Recreation & Sport,Supplies and Services,19/10/2011,400122,3764,REVENUE,Athene Communications
Peterborough City Council,Housing Services,Housing Benefits,Employees,19/10/2011,401268,1212.62,REVENUE,The Synergy Group
Peterborough City Council,Housing Services,Housing Benefits,Employees,19/10/2011,401270,1219.85,REVENUE,The Synergy Group
Peterborough City Council,Housing Services,Housing Benefits,Employees,19/10/2011,401529,1248.72,REVENUE,The Synergy Group
Peterborough City Council,Housing Services,Housing Benefits,Employees,19/10/2011,402340,1010.52,REVENUE,The Synergy Group
Peterborough City Council,Housing Services,Housing Benefits,Employees,19/10/2011,402341,1198.19,REVENUE,The Synergy Group
Peterborough City Council,Housing Services,Housing Benefits,Employees,19/10/2011,402438,1241.5,REVENUE,The Synergy Group
Peterborough City Council,Children's & Education Services - Education,Non-School Funding,Supplies and Services,19/10/2011,406928,3375,REVENUE,University of East London
Peterborough City Council,Housing Services,Housing Benefits,Employees,19/10/2011,407174,1180.8,REVENUE,The Synergy Group
Peterborough City Council,Housing Services,Housing Benefits,Employees,19/10/2011,407175,1739.4,REVENUE,The Synergy Group
Peterborough City Council,Children's & Education Services - Children's Social Care,Other Children's & Families Services,Employees,19/10/2011,407176,2296.37,REVENUE,Randstad Care Ltd
Peterborough City Council,Housing Services,Housing Benefits,Employees,19/10/2011,407425,700.44,REVENUE,The Synergy Group
Peterborough City Council,Children's & Education Services - Children's Social Care,Support Services & Management Costs,Employees,19/10/2011,407441,900,REVENUE,Redacted Personal Data
Peterborough City Council,Housing Services,Private Sector Housing Renewal,Supplies and Services,19/10/2011,407503,1415.25,REVENUE,Nightingale Services
Peterborough City Council,Central Services to the Public,Local Tax,Employees,19/10/2011,407538,1843.2,REVENUE,The Synergy Group
Peterborough City Council,Housing Services,Housing Benefits,Employees,19/10/2011,407540,1065.6,REVENUE,The Synergy Group
Peterborough City Council,Support Services,Support Services,Premises,19/10/2011,407787,6098.38,REVENUE,Baker Perkins Ltd
Peterborough City Council,Support Services,Support Services,Premises,19/10/2011,407788,5649.56,REVENUE,Baker Perkins Ltd
Peterborough City Council,Children's & Education Services - Children's Social Care,Other Children's & Families Services,Employees,19/10/2011,407791,1658.78,REVENUE,Blue Group International Ltd
Peterborough City Council,"Highways, Roads & Transport Services","Transport planning, policy and strategy",Employees,19/10/2011,407815,1386,REVENUE,The Synergy Group
Peterborough City Council,Children's & Education Services - Children's Social Care,Other Children's & Families Services,Supplies and Services,19/10/2011,407819,17193,REVENUE,CareWorks (UK) Ltd
Peterborough City Council,Cultural and Related Services,Waste Collection,Supplies and Services,19/10/2011,407823,1797.96,REVENUE,Waste Recycling Ltd
Peterborough City Council,Cultural and Related Services,Waste Collection,Supplies and Services,19/10/2011,407824,15347.78,REVENUE,Waste Recycling Ltd
Peterborough City Council,Cultural and Related Services,Waste Collection,Supplies and Services,19/10/2011,407825,686.55,REVENUE,Waste Recycling Ltd
Peterborough City Council,Cultural and Related Services,Waste Collection,Supplies and Services,19/10/2011,407826,15400.51,REVENUE,Waste Recycling Ltd
Peterborough City Council,Cultural and Related Services,Waste Collection,Supplies and Services,19/10/2011,407827,282864.05,REVENUE,Waste Recycling Ltd
Peterborough City Council,Cultural and Related Services,Waste Collection,Supplies and Services,19/10/2011,407828,10396.18,REVENUE,Waste Recycling Ltd
Peterborough City Council,Cultural and Related Services,Waste Collection,Supplies and Services,19/10/2011,407829,11339.21,REVENUE,Waste Recycling Ltd
Peterborough City Council,Support Services,Support Services,Employees,19/10/2011,407830,1326.67,REVENUE,Venn Group Ltd
Peterborough City Council,Support Services,Support Services,Employees,19/10/2011,407831,1593.2,REVENUE,Venn Group Ltd
Peterborough City Council,Children's & Education Services - Children's Social Care,Other Children's & Families Services,Employees,19/10/2011,407837,1658.78,REVENUE,Blue Group International Ltd
Peterborough City Council,Support Services,Support Services,Employees,19/10/2011,407840,1293.37,REVENUE,Sacco Mann Ltd
Peterborough City Council,Capital,Capital,Capital Pending Update to BS,19/10/2011,407851,3420,CAPITAL,Idox Software Ltd
Peterborough City Council,Housing Services,Private Sector Housing Renewal,Supplies and Services,19/10/2011,407859,10213.79,REVENUE,Northgate Information Solutions
Peterborough City Council,Central Services to the Public,Local Land Charges,Supplies and Services,19/10/2011,407861,2330.47,REVENUE,Northgate Information Solutions
Peterborough City Council,Children's & Education Services - Children's Social Care,Support Services & Management Costs,Employees,19/10/2011,407878,808,REVENUE,Partridge & Print Ltd
Peterborough City Council,Children's & Education Services - Children's Social Care,Children Looked After,Employees,19/10/2011,407898,589.68,REVENUE,Randstad Care Ltd
Peterborough City Council,Children's & Education Services - Children's Social Care,Children Looked After,Employees,19/10/2011,407899,654.95,REVENUE,Randstad Care Ltd
Peterborough City Council,Children's & Education Services - Children's Social Care,Other Children's & Families Services,Employees,19/10/2011,407902,1154.26,REVENUE,Randstad Care Ltd
Peterborough City Council,Children's & Education Services - Children's Social Care,Other Children's & Families Services,Employees,19/10/2011,407904,2296.37,REVENUE,Randstad Care Ltd
Peterborough City Council,Children's & Education Services - Children's Social Care,Support Services & Management Costs,Employees,19/10/2011,407905,1529.14,REVENUE,Randstad Care Ltd
Peterborough City Council,Cultural and Related Services,Waste Collection,Supplies and Services,19/10/2011,407907,10566.65,REVENUE,H W Martin Waste Ltd
Peterborough City Council,Children's & Education Services - Children's Social Care,Support Services & Management Costs,Employees,19/10/2011,407916,1614.06,REVENUE,Service Care Solutions Ltd
Peterborough City Council,Children's & Education Services - Children's Social Care,Children Looked After,Supplies and Services,19/10/2011,407918,1356,REVENUE,Redacted Personal Data
Peterborough City Council,Cultural and Related Services,Recreation & Sport,Supplies and Services,19/10/2011,407938,5754,REVENUE,Running Imp International Sports Ltd
Peterborough City Council,Housing Services,Private Sector Housing Renewal,Supplies and Services,19/10/2011,407940,2816.4,REVENUE,Casbon Building Services
Peterborough City Council,Planning Services,Economic Development,Employees,19/10/2011,408712,1870.02,REVENUE,The Synergy Group
Peterborough City Council,Planning Services,Economic Development,Employees,19/10/2011,408715,1130.2,REVENUE,The Synergy Group
Peterborough City Council,Planning Services,Economic Development,Employees,19/10/2011,408720,1761.49,REVENUE,The Synergy Group
Peterborough City Council,Planning Services,Economic Development,Employees,19/10/2011,408723,1337.77,REVENUE,The Synergy Group
Peterborough City Council,Central Services to the Public,Local Tax,Employees,19/10/2011,408724,1346.4,REVENUE,The Synergy Group
Peterborough City Council,"Highways, Roads & Transport Services",Street Lighting,Premises,19/10/2011,408737,637.2,REVENUE,E.ON Energy
Peterborough City Council,Capital,Capital,Capital Pending Update to BS,19/10/2011,408743,2916,CAPITAL,Ground Engineering Ltd
Peterborough City Council,Children's & Education Services - Children's Social Care,Children Looked After,Employees,19/10/2011,408751,10150,REVENUE,Northamptonshire  County Council
Peterborough City Council,Children's & Education Services - Education,Non-School Funding,Supplies and Services,19/10/2011,408783,7166,REVENUE,The Award Scheme Ltd
Peterborough City Council,"Highways, Roads & Transport Services","Transport planning, policy and strategy",Transport,19/10/2011,408785,517.19,REVENUE,Burnt Tree Group
Peterborough City Council,Children's & Education Services - Education,All Schools - apportion across sectors,Employees,19/10/2011,408788,1688,REVENUE,University Centre Peterborough
Peterborough City Council,"Cultural, Environmental and Planning Services",Open Spaces,Third Party Payments,19/10/2011,408789,546,REVENUE,JCB Finance Ltd
Peterborough City Council,Children's & Education Services - Education,Non-School Funding,Supplies and Services,19/10/2011,408832,3969,REVENUE,Reading Borough Council
Peterborough City Council,Children's & Education Services - Children's Social Care,Children Looked After,Employees,19/10/2011,408850,667.78,REVENUE,Advantage Healthcare Nursing & Care Ltd
Peterborough City Council,Capital,Capital,Capital Pending Update to BS,19/10/2011,408855,4773.35,CAPITAL,Rider Levett Bucknall UK Ltd
Peterborough City Council,Children's & Education Services - Children's Social Care,Family Support Services,Supplies and Services,19/10/2011,408900,544,REVENUE,Goldsborough Homecare
Peterborough City Council,Cultural and Related Services,Recreation & Sport,Supplies and Services,19/10/2011,408928,3120,REVENUE,Athene Communications
Peterborough City Council,Children's & Education Services - Education,Secondary,Supplies and Services,19/10/2011,408968,71746.52,REVENUE,IIC by Education (P'boro) Ltd
Peterborough City Council,"Highways, Roads & Transport Services",Environmental Initiatives,Supplies and Services,19/10/2011,408969,637.97,REVENUE,Cyclescheme Ltd
Peterborough City Council,Children's & Education Services - Education,All Schools - apportion across sectors,Supplies and Services,19/10/2011,408999,797.78,REVENUE,Johnston Press Midlands Division
Peterborough City Council,Support Services,Support Services,Supplies and Services,19/10/2011,409059,4200,REVENUE,Cambridgeshire Chamber of Commerce
Peterborough City Council,"Highways, Roads & Transport Services",Public Transport,Employees,19/10/2011,409084,960,REVENUE,Marks Specialised Transport Ltd
Peterborough City Council,Deficit/(Surplus) on Trading Undertakings,Trading Account Surpluses & Deficits,Supplies and Services,19/10/2011,409103,611.1,REVENUE,Quality Plus Finishing Ltd
Peterborough City Council,"Highways, Roads & Transport Services","Environmental, Safety & Routine Maintenance",Supplies and Services,19/10/2011,409154,860.14,REVENUE,ADC (East Anglia) Ltd
Peterborough City Council,Children's & Education Services - Education,Non-School Funding,Supplies and Services,19/10/2011,409207,3340.2,REVENUE,Phonak UK Ltd
Peterborough City Council,Cultural and Related Services,Recreation & Sport,Premises,19/10/2011,409230,9000,REVENUE,Omega Red Group Ltd
Peterborough City Council,Support Services,Support Services,Employees,19/10/2011,409233,1764,REVENUE,Sellick Partnership Group Limited
Peterborough City Council,Central Services to the Public,Local Tax,Supplies and Services,19/10/2011,409257,885.15,REVENUE,Rossendales C B Ltd
Peterborough City Council,More than one Service Area Category,More than one Service Division,Supplies and Services,19/10/2011,409427,1828.15,REVENUE,TNT Post Midlands Ltd
Peterborough City Council,Children's & Education Services - Children's Social Care,Family Support Services,Premises,19/10/2011,409430,1000.54,REVENUE,T Clarke East Limited
Peterborough City Council,Deficit/(Surplus) on Trading Undertakings,Trading Account Surpluses & Deficits,Supplies and Services,19/10/2011,409432,598.56,REVENUE,T Clarke East Limited
Peterborough City Council,Deficit/(Surplus) on Trading Undertakings,Trading Account Surpluses & Deficits,Premises,19/10/2011,409433,532.51,REVENUE,T Clarke East Limited
Peterborough City Council,Deficit/(Surplus) on Trading Undertakings,Trading Account Surpluses & Deficits,Supplies and Services,19/10/2011,409436,525.37,REVENUE,T Clarke East Limited
Peterborough City Council,"Cultural, Environmental and Planning Services",Economic Development,Premises,19/10/2011,409437,991.54,REVENUE,T Clarke East Limited
Peterborough City Council,Environmental and Regulatory Services,"Cemetery, Crematorium & Mortuary Services",Supplies and Services,19/10/2011,409458,888,REVENUE,"Strickland, Mr A M"
Peterborough City Council,Environmental and Regulatory Services,"Cemetery, Crematorium & Mortuary Services",Premises,19/10/2011,409478,696,REVENUE,"Strickland, Mr A M"
Peterborough City Council,Capital,Capital,Capital Pending Update to BS,19/10/2011,410108,8186.4,CAPITAL,UK Power Networks (operations) Ltd
Peterborough City Council,Children's & Education Services - Children's Social Care,Other Children's & Families Services,Employees,19/10/2011,410224,1587.96,REVENUE,Sanctuary Personnel Ltd
Peterborough City Council,Children's & Education Services - Children's Social Care,Other Children's & Families Services,Employees,19/10/2011,410230,1575,REVENUE,Sanctuary Personnel Ltd
Peterborough City Council,Children's & Education Services - Children's Social Care,Other Children's & Families Services,Employees,19/10/2011,410559,2610.96,REVENUE,Randstad Care Ltd
Peterborough City Council,Children's & Education Services - Children's Social Care,Other Children's & Families Services,Employees,19/10/2011,410563,2444.81,REVENUE,Randstad Care Ltd
Peterborough City Council,Environmental and Regulatory Services,"Cemetery, Crematorium & Mortuary Services",Supplies and Services,19/10/2011,410584,1047,REVENUE,Anglia Co-operative Funerals
Peterborough City Council,Support Services,Support Services,Supplies and Services,19/10/2011,410599,1800,REVENUE,"Mitchell, Miss Janet"
Peterborough City Council,Central Services to the Public,Emergency Planning,Supplies and Services,19/10/2011,410723,3120,REVENUE,Kenyon Int. Emergency Services
Peterborough City Council,Children's & Education Services - Children's Social Care,Other Children's & Families Services,Third Party Payments,19/10/2011,410743,6600,REVENUE,Blumint
Peterborough City Council,Children's & Education Services - Children's Social Care,Support Services & Management Costs,Supplies and Services,19/10/2011,410774,700,REVENUE,HM Courts and Tribunals Service (HMCTS)
Peterborough City Council,Support Services,Support Services,Premises,19/10/2011,410824,-1248.82,REVENUE,Eastern Shires Purchasing Organisation
Peterborough City Council,Capital,Capital,Capital Pending Update to BS,19/10/2011,411580,2596.94,CAPITAL,Frederick F Smith (Builders) Ltd
Peterborough City Council,Deficit/(Surplus) on Trading Undertakings,Trading Account Surpluses & Deficits,Supplies and Services,19/10/2011,412444,3638.16,REVENUE,Perkins Engines Co Ltd
Peterborough City Council,Environmental and Regulatory Services,Regulatory services,Supplies and Services,19/10/2011,412446,780,REVENUE,Chartered Inst of Environmental Health
Peterborough City Council,Capital,Capital,Capital Pending Update to BS,19/10/2011,412475,685622.77,CAPITAL,Kier Eastern
Peterborough City Council,Support Services,Support Services,Supplies and Services,19/10/2011,412496,10323,REVENUE,Key People Ltd
Peterborough City Council,Children's & Education Services - Children's Social Care,Other Children's & Families Services,Third Party Payments,19/10/2011,412534,-15160.75,REVENUE,Vivacity Culture and Leisure
Peterborough City Council,Children's & Education Services - Education,Secondary,Premises,19/10/2011,412544,3834.06,REVENUE,Npower Ltd
Peterborough City Council,Children's & Education Services - Children's Social Care,Support Services & Management Costs,Supplies and Services,19/10/2011,412589,1400,REVENUE,HM Courts and Tribunals Service (HMCTS)
Peterborough City Council,Children's & Education Services - Children's Social Care,Support Services & Management Costs,Supplies and Services,19/10/2011,412679,649.5,REVENUE,Management & Social Care Services Ltd (MASCS)
Peterborough City Council,Children's & Education Services - Education,Non-School Funding,Supplies and Services,19/10/2011,412705,840,REVENUE,South Bretton PS Middleton
Peterborough City Council,Children's & Education Services - Education,Non-School Funding,Supplies and Services,19/10/2011,412706,504,REVENUE,South Bretton PS Middleton
Peterborough City Council,Children's & Education Services - Education,Non-School Funding,Supplies and Services,19/10/2011,412713,672,REVENUE,Eye Pre-School
Peterborough City Council,Children's & Education Services - Education,Non-School Funding,Supplies and Services,19/10/2011,412715,648,REVENUE,Southfields Nursery
Peterborough City Council,Children's & Education Services - Education,Non-School Funding,Supplies and Services,19/10/2011,412717,780,REVENUE,Thorney Pre-School Playgroup
Peterborough City Council,Cultural and Related Services,More than one Service Division,Supplies and Services,19/10/2011,412747,38334.13,REVENUE,Vivacity Culture and Leisure
Peterborough City Council,Capital,Capital,Capital Pending Update to BS,19/10/2011,412780,17787,CAPITAL,Pinsent Masons
Peterborough City Council,Capital,Capital,Capital Pending Update to BS,19/10/2011,412781,117600,CAPITAL,Pinsent Masons
Peterborough City Council,Housing Services,Housing Benefits,Supplies and Services,19/10/2011,412808,720.78,REVENUE,Crown Records Management Ltd
Peterborough City Council,Children's & Education Services - Children's Social Care,Children Looked After,Supplies and Services,19/10/2011,412814,600,REVENUE,Bluestone New Media Limited
Peterborough City Council,Support Services,Support Services,Premises,19/10/2011,412816,2800.39,REVENUE,Southern Electric
Peterborough City Council,Support Services,Support Services,Premises,19/10/2011,412819,3864.18,REVENUE,Southern Electric
Peterborough City Council,Support Services,Support Services,Premises,19/10/2011,412821,514.94,REVENUE,Eastern Shires Purchasing Organisation
Peterborough City Council,Support Services,Support Services,Premises,19/10/2011,412832,666.03,REVENUE,E.ON Energy
Peterborough City Council,More than one Service Area Category,More than one Service Division,More than one Expenses Type,19/10/2011,412866,3787,"Mixture of Capital, Revenue and/or Balance Sheet",Casbon Building Services
Peterborough City Council,More than one Service Area Category,More than one Service Division,More than one Expenses Type,19/10/2011,412871,4664,"Mixture of Capital, Revenue and/or Balance Sheet",Casbon Building Services
Peterborough City Council,More than one Service Area Category,More than one Service Division,More than one Expenses Type,19/10/2011,412879,4656,"Mixture of Capital, Revenue and/or Balance Sheet",M J Greaves
Peterborough City Council,More than one Service Area Category,More than one Service Division,More than one Expenses Type,19/10/2011,412881,11791,"Mixture of Capital, Revenue and/or Balance Sheet",M J Greaves
Peterborough City Council,More than one Service Area Category,More than one Service Division,More than one Expenses Type,19/10/2011,412883,5043,"Mixture of Capital, Revenue and/or Balance Sheet",M M Heating & Plumbing
Peterborough City Council,More than one Service Area Category,More than one Service Division,More than one Expenses Type,19/10/2011,412891,3662,"Mixture of Capital, Revenue and/or Balance Sheet",Dolphin Mobility East Midlands Ltd
Peterborough City Council,More than one Service Area Category,More than one Service Division,More than one Expenses Type,19/10/2011,412893,833.11,"Mixture of Capital, Revenue and/or Balance Sheet",Thermowall Ltd
Peterborough City Council,More than one Service Area Category,More than one Service Division,More than one Expenses Type,19/10/2011,412894,5853.25,"Mixture of Capital, Revenue and/or Balance Sheet",FAM Building Contractors LLP
Peterborough City Council,More than one Service Area Category,More than one Service Division,More than one Expenses Type,19/10/2011,412895,1730,"Mixture of Capital, Revenue and/or Balance Sheet",EMS Stairlifts
Peterborough City Council,More than one Service Area Category,More than one Service Division,More than one Expenses Type,19/10/2011,412897,3366.2,"Mixture of Capital, Revenue and/or Balance Sheet",Total Hygiene Ltd
Peterborough City Council,Cultural and Related Services,Open Spaces,Supplies and Services,19/10/2011,412898,5966.51,REVENUE,Belvedere Bowls Club
Peterborough City Council,Children's & Education Services - Children's Social Care,Children Looked After,Supplies and Services,19/10/2011,412917,539.52,REVENUE,Clare Lodge Secure Unit
Peterborough City Council,More than one Service Area Category,More than one Service Division,Transport,19/10/2011,412919,1036.8,REVENUE,R T Enterprises Ltd T/A Royal Taxis
Peterborough City Council,Children's & Education Services - Children's Social Care,Children Looked After,More than one Expenses Type,19/10/2011,412928,789.52,REVENUE,Clare Lodge Secure Unit
Peterborough City Council,Planning Services,Economic Development,Premises,19/10/2011,412994,3620,REVENUE,Edge Advanced Steam Clean Services
Peterborough City Council,Deficit/(Surplus) on Trading Undertakings,Trading Account Surpluses & Deficits,Supplies and Services,19/10/2011,412997,9420,REVENUE,Burbage Machine Tools Ltd
Peterborough City Council,Cultural and Related Services,Support Services & Management Costs,Third Party Payments,19/10/2011,412999,18184.99,REVENUE,Vivacity Culture and Leisure
Peterborough City Council,Children's & Education Services - Education,Non-School Funding,Supplies and Services,19/10/2011,413002,20000,REVENUE,Vivacity Culture and Leisure
Peterborough City Council,Support Services,Support Services,Supplies and Services,19/10/2011,413006,1102.8,REVENUE,Browne Jacobson
Peterborough City Council,Planning Services,Economic Development,Third Party Payments,19/10/2011,413017,2304,REVENUE,HM Land Registry
Peterborough City Council,More than one Service Area Category,More than one Service Division,Balance Sheet,19/10/2011,413021,19200,Balance Sheet,Redacted Personal Data
Peterborough City Council,Deficit/(Surplus) on Trading Undertakings,Trading Account Surpluses & Deficits,Premises,19/10/2011,413022,11023.87,REVENUE,J R Clarke Ltd
Peterborough City Council,Support Services,Support Services & Management Costs,Employees,19/10/2011,413028,1385,REVENUE,Peterborough Regional College
Peterborough City Council,"Highways, Roads & Transport Services",Traffic management & Road Safety,Supplies and Services,19/10/2011,413031,32589,REVENUE,Cambridgeshire County Council
Peterborough City Council,Capital,Capital,Capital Pending Update to BS,19/10/2011,413043,16911.74,CAPITAL,Benchmark Contracts Ltd
Peterborough City Council,Children's & Education Services - Education,Non-School Funding,Supplies and Services,19/10/2011,413044,793.76,REVENUE,St Thomas More Catholic Nursery
Peterborough City Council,Children's & Education Services - Education,Non-School Funding,Supplies and Services,19/10/2011,413046,968,REVENUE,Family Action
Peterborough City Council,Children's & Education Services - Education,Non-School Funding,Supplies and Services,19/10/2011,413051,677.6,REVENUE,Family Action
Peterborough City Council,Children's & Education Services - Education,Non-School Funding,Supplies and Services,19/10/2011,413052,968,REVENUE,Shiny Stars Pre-School
Peterborough City Council,Children's & Education Services - Children's Social Care,Children Looked After,Supplies and Services,19/10/2011,413058,695,REVENUE,Noonan Crane Property Management
Peterborough City Council,Children's & Education Services - Education,Non-School Funding,Supplies and Services,19/10/2011,413078,22834.58,REVENUE,Park House School
Peterborough City Council,Cultural and Related Services,Waste Collection,Supplies and Services,19/10/2011,413079,4059.42,REVENUE,H W Martin Waste Ltd
Peterborough City Council,Children's & Education Services - Children's Social Care,Other Children's & Families Services,Supplies and Services,19/10/2011,413092,600,REVENUE,Redacted Personal Data
Peterborough City Council,Children's & Education Services - Children's Social Care,Support Services & Management Costs,Supplies and Services,19/10/2011,413094,1900,REVENUE,HM Courts and Tribunals Service (HMCTS)
Peterborough City Council,Children's & Education Services - Children's Social Care,Support Services & Management Costs,Supplies and Services,19/10/2011,413096,700,REVENUE,HM Courts and Tribunals Service (HMCTS)
Peterborough City Council,Children's & Education Services - Children's Social Care,Support Services & Management Costs,Employees,19/10/2011,413098,1350,REVENUE,Key 2 Knowledge
Peterborough City Council,Planning Services,Economic Development,Supplies and Services,19/10/2011,413111,12263.76,REVENUE,Centre for Sustainable Engineering
Peterborough City Council,Children's & Education Services - Education,Secondary,Supplies and Services,19/10/2011,413115,1411.4,REVENUE,Shropshire County Council
Peterborough City Council,Children's & Education Services - Education,Secondary,Premises,19/10/2011,413137,9180.2,REVENUE,Southern Electric
Peterborough City Council,Children's & Education Services - Education,Secondary,Premises,19/10/2011,413140,2542.88,REVENUE,Anglian Water
Peterborough City Council,Children's & Education Services - Education,Secondary,Premises,19/10/2011,413141,5827.38,REVENUE,Southern Electric
Peterborough City Council,Children's & Education Services - Education,Secondary,Premises,19/10/2011,413143,1045.14,REVENUE,Eastern Shires Purchasing Organisation
Peterborough City Council,Children's & Education Services - Education,Secondary,Premises,19/10/2011,413144,1017.67,REVENUE,Eastern Shires Purchasing Organisation
Peterborough City Council,Children's & Education Services - Education,Secondary,Premises,19/10/2011,413145,1660.04,REVENUE,Eastern Shires Purchasing Organisation
Peterborough City Council,Children's & Education Services - Education,Secondary,Premises,19/10/2011,413146,574,REVENUE,Siemens Energy Services Ltd
Peterborough City Council,Children's & Education Services - Children's Social Care,Children Looked After,Employees,21/10/2011,396710,2031.8,REVENUE,Advantage Healthcare Nursing & Care Ltd
Peterborough City Council,Housing Services,Housing Benefits,Employees,21/10/2011,401528,1140,REVENUE,The Synergy Group
Peterborough City Council,Housing Services,Supporting People,Third Party Payments,21/10/2011,407188,1777.8,REVENUE,Peterborough Provider Services
Peterborough City Council,Housing Services,Private Sector Housing Renewal,Supplies and Services,21/10/2011,407489,605.2,REVENUE,Fletton Electrics Ltd
Peterborough City Council,Children's & Education Services - Children's Social Care,Other Children's & Families Services,Supplies and Services,21/10/2011,407716,1966.1,REVENUE,R S P LTD
Peterborough City Council,Housing Services,Housing Benefits,Employees,21/10/2011,407807,1260,REVENUE,The Synergy Group
Peterborough City Council,Support Services,Support Services,Supplies and Services,21/10/2011,407856,504,REVENUE,Northgate Information Solutions
Peterborough City Council,Housing Services,Housing Benefits,Employees,21/10/2011,408716,613.54,REVENUE,The Synergy Group
Peterborough City Council,Housing Services,Housing Benefits,Employees,21/10/2011,408718,1032.18,REVENUE,The Synergy Group
Peterborough City Council,Housing Services,Housing Benefits,Employees,21/10/2011,408719,1068.26,REVENUE,The Synergy Group
Peterborough City Council,Housing Services,Housing Benefits,Employees,21/10/2011,408970,1248.72,REVENUE,The Synergy Group
Peterborough City Council,Housing Services,Housing Benefits,Employees,21/10/2011,408972,1176.53,REVENUE,The Synergy Group
Peterborough City Council,Capital,Capital,Capital Pending Update to BS,21/10/2011,410444,22897.06,CAPITAL,L Garfield (Builders) Ltd
Peterborough City Council,Capital,Capital,Capital Pending Update to BS,21/10/2011,412436,11687.28,CAPITAL,L Garfield (Builders) Ltd
Peterborough City Council,Children's & Education Services - Children's Social Care,Other Children's & Families Services,Supplies and Services,21/10/2011,412519,17484,REVENUE,Progressive Care Ltd
Peterborough City Council,Children's & Education Services - Children's Social Care,Other Children's & Families Services,Supplies and Services,21/10/2011,412520,11656,REVENUE,Progressive Care Ltd
Peterborough City Council,Children's & Education Services - Children's Social Care,Other Children's & Families Services,Supplies and Services,21/10/2011,412521,11656,REVENUE,Progressive Care Ltd
Peterborough City Council,Capital,Capital,Capital Pending Update to BS,21/10/2011,412569,14400,CAPITAL,L Garfield (Builders) Ltd
Peterborough City Council,Children's & Education Services - Children's Social Care,More than one Service Division,Supplies and Services,21/10/2011,412828,507,REVENUE,Redacted Personal Data
Peterborough City Council,Housing Services,Supporting People,Third Party Payments,21/10/2011,412837,2933.36,REVENUE,NACRO
Peterborough City Council,Housing Services,Supporting People,Third Party Payments,21/10/2011,412839,1041.65,REVENUE,Anchor Trust
Peterborough City Council,Housing Services,Supporting People,Third Party Payments,21/10/2011,412841,1777.8,REVENUE,Peterborough Provider Services
Peterborough City Council,Housing Services,Supporting People,Third Party Payments,21/10/2011,412843,2222.25,REVENUE,Terrence Higgins Trust Ltd
Peterborough City Council,Housing Services,Supporting People,Third Party Payments,21/10/2011,412845,1415.93,REVENUE,Minster General Housing
Peterborough City Council,Housing Services,Supporting People,Third Party Payments,21/10/2011,412847,19236,REVENUE,Cross Keys Homes
Peterborough City Council,Housing Services,Supporting People,Third Party Payments,21/10/2011,412849,62521.23,REVENUE,Axiom Housing Association
Peterborough City Council,Housing Services,Supporting People,Third Party Payments,21/10/2011,412851,1094.07,REVENUE,Accent Nene Housing Soc. Ltd
Peterborough City Council,Housing Services,Supporting People,Third Party Payments,21/10/2011,412852,1777.8,REVENUE,Peterborough PCT
Peterborough City Council,Housing Services,Supporting People,Third Party Payments,21/10/2011,412854,5176.38,REVENUE,Springboard Housing Association
Peterborough City Council,Housing Services,Supporting People,Third Party Payments,21/10/2011,412855,5017.14,REVENUE,Peterborough Womens Aid
Peterborough City Council,Housing Services,Supporting People,Third Party Payments,21/10/2011,412860,23153.64,REVENUE,YMCA Cambridge & Peterborough
Peterborough City Council,Housing Services,Supporting People,Third Party Payments,21/10/2011,412862,10190.99,REVENUE,Stonham Housing Association
Peterborough City Council,Housing Services,Supporting People,Third Party Payments,21/10/2011,412864,5250.72,REVENUE,Peterborough PCT
Peterborough City Council,Housing Services,Supporting People,Third Party Payments,21/10/2011,412867,1777.8,REVENUE,Peterborough Provider Services
Peterborough City Council,Housing Services,Supporting People,Third Party Payments,21/10/2011,412869,548.08,REVENUE,Hanover Housing Association
Peterborough City Council,Planning Services,Community Development,Supplies and Services,21/10/2011,412912,1200,REVENUE,Honeyhill Drama Group
Peterborough City Council,Planning Services,Community Development,Supplies and Services,21/10/2011,412915,1887.9,REVENUE,Heritage Park Primary School
Peterborough City Council,Children's & Education Services - Children's Social Care,Children Looked After,Supplies and Services - Transfer Payments,21/10/2011,412971,3233.3,REVENUE,National Fostering Agency
Peterborough City Council,Children's & Education Services - Children's Social Care,Children Looked After,Supplies and Services - Transfer Payments,21/10/2011,412974,730.1,REVENUE,National Fostering Agency
Peterborough City Council,Children's & Education Services - Children's Social Care,Children Looked After,Supplies and Services - Transfer Payments,21/10/2011,412975,3233.3,REVENUE,National Fostering Agency
Peterborough City Council,Planning Services,Community Development,Supplies and Services,21/10/2011,413027,500,REVENUE,Westwood Residents Association
Peterborough City Council,Planning Services,Community Development,Supplies and Services,21/10/2011,413090,1500,REVENUE,Hampton Events Committee
Peterborough City Council,Cultural and Related Services,Tourism,Supplies and Services,21/10/2011,413103,2006.4,REVENUE,Peterborough Male Voice Choir
Peterborough City Council,Children's & Education Services - Children's Social Care,Other Children's & Families Services,Supplies and Services,21/10/2011,413151,-5828,REVENUE,Progressive Care Ltd
Peterborough City Council,Children's & Education Services - Children's Social Care,Family Support Services,Supplies and Services,21/10/2011,413178,510,REVENUE,Independent Health Care Services
Peterborough City Council,Children's & Education Services - Children's Social Care,Family Support Services,Supplies and Services,21/10/2011,413180,2190,REVENUE,Independent Health Care Services
Peterborough City Council,"Highways, Roads & Transport Services",Public Transport,Supplies and Services,21/10/2011,413187,1695.3,REVENUE,Statutory Payment of Concessionary Fares to Bus Provider
Peterborough City Council,Children's & Education Services - Education,Secondary,Premises,21/10/2011,413199,2463.82,REVENUE,Southern Electric
Peterborough City Council,"Highways, Roads & Transport Services",Public Transport,Supplies and Services,21/10/2011,413254,18577.5,REVENUE,Stagecoach in Peterborough
Peterborough City Council,Children's & Education Services - Children's Social Care,Children Looked After,Supplies and Services - Transfer Payments,21/10/2011,413288,3342.9,REVENUE,Synergy Fostering Ltd
Peterborough City Council,Children's & Education Services - Children's Social Care,Children Looked After,Supplies and Services - Transfer Payments,21/10/2011,413292,1714.5,REVENUE,Synergy Fostering Ltd
Peterborough City Council,Children's & Education Services - Children's Social Care,Children Looked After,Supplies and Services - Transfer Payments,21/10/2011,413294,3342.9,REVENUE,Synergy Fostering Ltd
Peterborough City Council,Planning Services,Economic Development,Third Party Payments,21/10/2011,413346,4500,REVENUE,Peterborough Womens Centre
Peterborough City Council,Capital,Capital,Capital Pending Update to BS,21/10/2011,413356,24633.24,CAPITAL,Pinsent Masons
Peterborough City Council,Drainage and Flood Levies,Precepts & Levies,Premises,21/10/2011,413367,3774,REVENUE,Nene Washlands Commissioners
Peterborough City Council,Children's & Education Services - Children's Social Care,Children Looked After,Supplies and Services - Transfer Payments,21/10/2011,413420,57247.25,REVENUE,Kisimul Group Ltd
Peterborough City Council,Court Services,Coroner's Court Service,More than one Expenses Type,21/10/2011,413467,3156.54,REVENUE,Coroners Service
Peterborough City Council,Children's & Education Services - Children's Social Care,More than one Service Division,More than one Expenses Type,21/10/2011,413474,1448.45,REVENUE,Children & Families Looked After Children
Peterborough City Council,Children's & Education Services - Children's Social Care,Children Looked After,More than one Expenses Type,21/10/2011,413479,520.3,REVENUE,Clare Lodge Secure Unit
Peterborough City Council,Children's & Education Services - Children's Social Care,Management and support services,Premises,21/10/2011,413480,-2280,REVENUE,Nick Smith Building & Maintenance
Peterborough City Council,Children's & Education Services - Children's Social Care,Management and support services,Premises,21/10/2011,413482,2850,REVENUE,Nick Smith Building & Maintenance
Peterborough City Council,Support Services,Support Services,Employees,24/10/2011,393316,850,REVENUE,Fenland First Aid Services Ltd
Peterborough City Council,Planning Services,Economic Development,Third Party Payments,24/10/2011,405660,29400,REVENUE,Peterborough Citizens Advice Bureau
Peterborough City Council,Children's & Education Services - Children's Social Care,Other Children's & Families Services,Employees,24/10/2011,408692,1609.5,REVENUE,Care Recruitment UK Ltd
Peterborough City Council,Children's & Education Services - Children's Social Care,Children Looked After,Supplies and Services,24/10/2011,408711,834,REVENUE,Redacted Personal Data
Peterborough City Council,Deficit/(Surplus) on Trading Undertakings,Trading Account Surpluses & Deficits,Premises,24/10/2011,408734,5985.6,REVENUE,Atkins Limited
Peterborough City Council,Cultural and Related Services,Tourism,Employees,24/10/2011,408848,720,REVENUE,New Vision Group Ltd
Peterborough City Council,Children's & Education Services - Children's Social Care,Other Children's & Families Services,Employees,24/10/2011,408918,1512,REVENUE,Blue Group International Ltd
Peterborough City Council,Children's & Education Services - Children's Social Care,Support Services & Management Costs,Supplies and Services,24/10/2011,409086,2250,REVENUE,Redacted Personal Data
Peterborough City Council,Children's & Education Services - Children's Social Care,Support Services & Management Costs,Supplies and Services,24/10/2011,409096,2250,REVENUE,Redacted Personal Data
Peterborough City Council,Children's & Education Services - Education,All Schools - apportion across sectors,Supplies and Services,24/10/2011,409109,6930,REVENUE,Updata Infrastructure UK Ltd
Peterborough City Council,Children's & Education Services - Children's Social Care,Other Children's & Families Services,Employees,24/10/2011,409199,1658.78,REVENUE,Blue Group International Ltd
Peterborough City Council,Housing Services,Housing Benefits,Supplies and Services,24/10/2011,409214,701.76,REVENUE,Crown Records Management Ltd
Peterborough City Council,Children's & Education Services - Children's Social Care,Other Children's & Families Services,Employees,24/10/2011,409218,1687.2,REVENUE,Medicare First
Peterborough City Council,Children's & Education Services - Children's Social Care,Family Support Services,Employees,24/10/2011,409221,1247.4,REVENUE,Cambridgeshire County Council
Peterborough City Council,Children's & Education Services - Children's Social Care,Family Support Services,Employees,24/10/2011,409227,1500,REVENUE,City College Peterborough
Peterborough City Council,Children's & Education Services - Children's Social Care,Other Children's & Families Services,Employees,24/10/2011,409228,1420.8,REVENUE,Medicare First
Peterborough City Council,Children's & Education Services - Children's Social Care,Support Services & Management Costs,Supplies and Services,24/10/2011,409413,2186.75,REVENUE,Beech Clinic
Peterborough City Council,Children's & Education Services - Children's Social Care,Support Services & Management Costs,Supplies and Services,24/10/2011,409414,915.12,REVENUE,Beech Clinic
Peterborough City Council,"Highways, Roads & Transport Services",Environmental Initiatives,Supplies and Services,24/10/2011,409419,1000,REVENUE,Cyclescheme Ltd
Peterborough City Council,Children's & Education Services - Children's Social Care,Children Looked After,Supplies and Services - Transfer Payments,24/10/2011,409563,11400,REVENUE,Lincoln House Childrens Services
Peterborough City Council,"Highways, Roads & Transport Services",Parking Services,Employees,24/10/2011,409600,537.6,REVENUE,Unity Recruitment Ltd
Peterborough City Council,Capital,Capital,Capital Pending Update to BS,24/10/2011,409660,1020,CAPITAL,Queensbury Shelters Ltd
Peterborough City Council,Capital,Capital,Capital Pending Update to BS,24/10/2011,410095,4124.2,CAPITAL,Serco Ltd
Peterborough City Council,Support Services,Support Services,Supplies and Services,24/10/2011,410098,1049.99,REVENUE,Serco Ltd
Peterborough City Council,Capital,Capital,Capital Pending Update to BS,24/10/2011,410100,529.2,CAPITAL,Serco Ltd
Peterborough City Council,Support Services,Support Services,Supplies and Services,24/10/2011,410178,792.46,REVENUE,Serco Ltd
Peterborough City Council,"Highways, Roads & Transport Services","Transport planning, policy and strategy",Supplies and Services,24/10/2011,410181,606.1,REVENUE,Serco Ltd
Peterborough City Council,Capital,Capital,Capital Pending Update to BS,24/10/2011,410183,7542,CAPITAL,Serco Ltd
Peterborough City Council,Capital,Capital,Capital Pending Update to BS,24/10/2011,410184,7367.75,CAPITAL,Serco Ltd
Peterborough City Council,Support Services,Support Services,Supplies and Services,24/10/2011,410187,21530.4,REVENUE,Serco Ltd
Peterborough City Council,Capital,Capital,Capital Pending Update to BS,24/10/2011,410188,1005.6,CAPITAL,Serco Ltd
Peterborough City Council,Deficit/(Surplus) on Trading Undertakings,Trading Account Surpluses & Deficits,Supplies and Services,24/10/2011,410228,749.04,REVENUE,M O 8 Specialities Ltd
Peterborough City Council,Court Services,Coroner's Court Service,Supplies and Services,24/10/2011,410341,2708.4,REVENUE,Sheffield Teaching Hospitals NHS Fdtn Trust
Peterborough City Council,Support Services,Support Services,Supplies and Services,24/10/2011,410601,2880,REVENUE,"Pavlou, Mr Paul"
Peterborough City Council,Children's & Education Services - Education,Non-School Funding,Third Party Payments,24/10/2011,410646,10166.7,REVENUE,Pre-School Learning Alliance
Peterborough City Council,Children's & Education Services - Children's Social Care,Family Support Services,Third Party Payments,24/10/2011,410647,32449.8,REVENUE,Pre-School Learning Alliance
Peterborough City Council,Children's & Education Services - Children's Social Care,Family Support Services,Third Party Payments,24/10/2011,410648,5482.8,REVENUE,Pre-School Learning Alliance
Peterborough City Council,More than one Service Area Category,More than one Service Division,More than one Expenses Type,24/10/2011,412199,32200.62,REVENUE,Ringway Infrastructure Services
Peterborough City Council,More than one Service Area Category,More than one Service Division,Transport,24/10/2011,412921,1084.2,REVENUE,R T Enterprises Ltd T/A Royal Taxis
Peterborough City Council,Support Services,Support Services,Premises,24/10/2011,413009,717.04,REVENUE,Zurich Insurance Company
Peterborough City Council,Children's & Education Services - Education,Non-School Funding,Supplies and Services,24/10/2011,413091,3717.12,REVENUE,Beeches Pre-School
Peterborough City Council,More than one Service Area Category,More than one Service Division,Balance Sheet,24/10/2011,413093,6000,Balance Sheet,Redacted Personal Data
Peterborough City Council,More than one Service Area Category,More than one Service Division,Balance Sheet,24/10/2011,413095,566,Balance Sheet,Dept for Work & Pensions
Peterborough City Council,Support Services,Support Services,Premises,24/10/2011,413130,843.54,REVENUE,Princebuild Limited
Peterborough City Council,Deficit/(Surplus) on Trading Undertakings,Trading Account Surpluses & Deficits,Supplies and Services,24/10/2011,413278,556.56,REVENUE,Barron Clark Castings Ltd
Peterborough City Council,Cultural and Related Services,Culture & Heritage,Supplies and Services,24/10/2011,413335,1000,REVENUE,Redacted Personal Data
Peterborough City Council,Support Services,Support Services,Premises,24/10/2011,413504,-888.88,REVENUE,Eastern Shires Purchasing Organisation
Peterborough City Council,Housing Services,Housing Benefits,Employees,24/10/2011,413505,9240,REVENUE,Capita Business Services Ltd
Peterborough City Council,Central Services to the Public,Elections,Supplies and Services,24/10/2011,413526,1837.3,REVENUE,Royal Mail
Peterborough City Council,Children's & Education Services - Children's Social Care,Children Looked After,Supplies and Services - Transfer Payments,24/10/2011,413529,3055.92,REVENUE,Foster Care Associates Ltd FCA
Peterborough City Council,More than one Service Area Category,More than one Service Division,More than one Expenses Type,24/10/2011,413539,697.75,REVENUE,Peterborough City Council
Peterborough City Council,More than one Service Area Category,More than one Service Division,More than one Expenses Type,24/10/2011,413545,754.11,REVENUE,Peterborough City Council
Peterborough City Council,Deficit/(Surplus) on Trading Undertakings,Trading Account Surpluses & Deficits,Supplies and Services,24/10/2011,413553,954.72,REVENUE,Barron Clark Castings Ltd
Peterborough City Council,Children's & Education Services - Education,Non-School Funding,Transport,24/10/2011,413622,866.4,REVENUE,Goldstar Cabs Ltd
Peterborough City Council,Children's & Education Services - Education,Non-School Funding,Transport,24/10/2011,413623,1569,REVENUE,Goldstar Cabs Ltd
Peterborough City Council,Children's & Education Services - Children's Social Care,Children Looked After,Transport,24/10/2011,413626,618.75,REVENUE,Redacted Personal Data
Peterborough City Council,Deficit/(Surplus) on Trading Undertakings,Trading Account Surpluses & Deficits,Premises,26/10/2011,365458,-5640,REVENUE,Stile Fencing & Construction
Peterborough City Council,Deficit/(Surplus) on Trading Undertakings,Trading Account Surpluses & Deficits,Premises,26/10/2011,372202,1438.69,REVENUE,Stile Fencing & Construction
Peterborough City Council,Children's & Education Services - Children's Social Care,Family Support Services,Support Services,26/10/2011,381355,3389.28,REVENUE,Stile Fencing & Construction
Peterborough City Council,Children's & Education Services - Children's Social Care,More than one Service Division,Employees,26/10/2011,394522,1665,REVENUE,Care Recruitment UK Ltd
Peterborough City Council,Children's & Education Services - Children's Social Care,More than one Service Division,Employees,26/10/2011,396913,1665,REVENUE,Care Recruitment UK Ltd
Peterborough City Council,Children's & Education Services - Children's Social Care,Children Looked After,Supplies and Services,26/10/2011,398485,539.44,REVENUE,Walter Clarke EFG
Peterborough City Council,Children's & Education Services - Children's Social Care,Other Children's & Families Services,Employees,26/10/2011,406939,1793.76,REVENUE,Frontline Staffing Ltd
Peterborough City Council,Children's & Education Services - Children's Social Care,Other Children's & Families Services,Employees,26/10/2011,406942,1842.24,REVENUE,Frontline Staffing Ltd
Peterborough City Council,Children's & Education Services - Children's Social Care,Other Children's & Families Services,Employees,26/10/2011,406943,1745.28,REVENUE,Frontline Staffing Ltd
Peterborough City Council,Children's & Education Services - Children's Social Care,Other Children's & Families Services,Employees,26/10/2011,406944,1139.28,REVENUE,Frontline Staffing Ltd
Peterborough City Council,Children's & Education Services - Children's Social Care,Other Children's & Families Services,Employees,26/10/2011,406947,1648.32,REVENUE,Frontline Staffing Ltd
Peterborough City Council,Children's & Education Services - Children's Social Care,Other Children's & Families Services,Employees,26/10/2011,407013,1042.32,REVENUE,Frontline Staffing Ltd
Peterborough City Council,Children's & Education Services - Children's Social Care,Children Looked After,Supplies and Services - Transfer Payments,26/10/2011,407107,3179.24,REVENUE,Fostering Options Ltd
Peterborough City Council,Children's & Education Services - Children's Social Care,Children Looked After,Supplies and Services - Transfer Payments,26/10/2011,407108,3179.24,REVENUE,Fostering Options Ltd
Peterborough City Council,Children's & Education Services - Children's Social Care,Children Looked After,Supplies and Services - Transfer Payments,26/10/2011,407114,3179.24,REVENUE,Fostering Options Ltd
Peterborough City Council,Children's & Education Services - Children's Social Care,Children Looked After,Supplies and Services - Transfer Payments,26/10/2011,407115,3179.24,REVENUE,Fostering Options Ltd
Peterborough City Council,Planning Services,Economic Development,Third Party Payments,26/10/2011,407351,3702.5,REVENUE,P'Boro Council For Voluntary Srvs
Peterborough City Council,Planning Services,Economic Development,Third Party Payments,26/10/2011,407352,3525,REVENUE,P'Boro Council For Voluntary Srvs
Peterborough City Council,Planning Services,Economic Development,Third Party Payments,26/10/2011,407353,8982.5,REVENUE,P'Boro Council For Voluntary Srvs
Peterborough City Council,Children's & Education Services - Children's Social Care,Family Support Services,Premises,26/10/2011,407491,517.02,REVENUE,Ideal Cleaning Services
Peterborough City Council,Children's & Education Services - Children's Social Care,Children Looked After,Supplies and Services - Transfer Payments,26/10/2011,407601,27706.43,REVENUE,The Regard Partnership Limited
Peterborough City Council,Housing Services,Private Sector Housing Renewal,Supplies and Services,26/10/2011,408887,1098,REVENUE,Foundations
Peterborough City Council,Children's & Education Services - Education,All Schools - apportion across sectors,Transport,26/10/2011,409217,1200,REVENUE,Smooth Operators (Peterborough) Ltd
Peterborough City Council,Housing Services,Housing Benefits,Employees,26/10/2011,409222,1185,REVENUE,The Synergy Group
Peterborough City Council,"Highways, Roads & Transport Services",Parking Services,Premises,26/10/2011,409225,996,REVENUE,Inaparc
Peterborough City Council,Capital,Capital,Capital Pending Update to BS,26/10/2011,409226,56641.42,CAPITAL,Servaccomm Redhall Ltd
Peterborough City Council,Support Services,Support Services,Employees,26/10/2011,409232,1258.42,REVENUE,Sacco Mann Ltd
Peterborough City Council,Planning Services,Economic Development,Supplies and Services,26/10/2011,409244,780,REVENUE,Ware Anthony Rust Limited
Peterborough City Council,Housing Services,Housing Benefits,Employees,26/10/2011,409407,1342.55,REVENUE,The Synergy Group
Peterborough City Council,Housing Services,Housing Benefits,Employees,26/10/2011,409408,1007.33,REVENUE,The Synergy Group
Peterborough City Council,Support Services,Support Services,Supplies and Services,26/10/2011,409428,720,REVENUE,"King, Miss Fawzia"
Peterborough City Council,Support Services,Support Services,Supplies and Services,26/10/2011,409429,720,REVENUE,"Jerman, Mr Anthony"
Peterborough City Council,Central Services to the Public,Local Tax,Employees,26/10/2011,409498,1843.2,REVENUE,The Synergy Group
Peterborough City Council,Planning Services,Economic Development,Employees,26/10/2011,409500,1355.86,REVENUE,The Synergy Group
Peterborough City Council,Housing Services,Housing Benefits,Employees,26/10/2011,409502,986.4,REVENUE,The Synergy Group
Peterborough City Council,Housing Services,Housing Benefits,Employees,26/10/2011,409503,1039.39,REVENUE,The Synergy Group
Peterborough City Council,Support Services,Support Services,Employees,26/10/2011,409505,1326.67,REVENUE,Venn Group Ltd
Peterborough City Council,Children's & Education Services - Children's Social Care,Other Children's & Families Services,Employees,26/10/2011,409519,1721.04,REVENUE,Frontline Staffing Ltd
Peterborough City Council,Support Services,Support Services,Employees,26/10/2011,409520,1535.8,REVENUE,Venn Group Ltd
Peterborough City Council,Planning Services,Economic Development,Employees,26/10/2011,409536,1870.02,REVENUE,The Synergy Group
Peterborough City Council,Planning Services,Economic Development,Employees,26/10/2011,409537,1160.75,REVENUE,The Synergy Group
Peterborough City Council,"Highways, Roads & Transport Services","Transport planning, policy and strategy",Employees,26/10/2011,409538,950.4,REVENUE,The Synergy Group
Peterborough City Council,Planning Services,Economic Development,Employees,26/10/2011,409539,1781.86,REVENUE,The Synergy Group
Peterborough City Council,"Highways, Roads & Transport Services","Environmental, Safety & Routine Maintenance",Supplies and Services,26/10/2011,409540,1046.8,REVENUE,Telent Technology Services Ltd
Peterborough City Council,"Highways, Roads & Transport Services","Environmental, Safety & Routine Maintenance",Supplies and Services,26/10/2011,409541,613.49,REVENUE,Telent Technology Services Ltd
Peterborough City Council,"Highways, Roads & Transport Services","Environmental, Safety & Routine Maintenance",Supplies and Services,26/10/2011,409545,6287.69,REVENUE,Telent Technology Services Ltd
Peterborough City Council,"Highways, Roads & Transport Services","Environmental, Safety & Routine Maintenance",Supplies and Services,26/10/2011,409546,1269.72,REVENUE,Telent Technology Services Ltd
Peterborough City Council,Children's & Education Services - Children's Social Care,Other Children's & Families Services,Employees,26/10/2011,409548,1154.26,REVENUE,Randstad Care Ltd
Peterborough City Council,Children's & Education Services - Children's Social Care,Support Services & Management Costs,Employees,26/10/2011,409549,1529.14,REVENUE,Randstad Care Ltd
Peterborough City Council,Children's & Education Services - Children's Social Care,Children Looked After,Employees,26/10/2011,409552,776.04,REVENUE,Randstad Care Ltd
Peterborough City Council,Adult Social Care,Other Adult Services,Employees,26/10/2011,409565,12615.73,REVENUE,National Treatment Agency
Peterborough City Council,Support Services,Support Services,Supplies and Services,26/10/2011,409571,7136.4,REVENUE,Eversheds LLP
Peterborough City Council,Capital,Capital,Capital Pending Update to BS,26/10/2011,409658,5518.55,CAPITAL,Hedley Solutions Ltd
Peterborough City Council,Children's & Education Services - Children's Social Care,Children Looked After,Employees,26/10/2011,409661,1270.02,REVENUE,Advantage Healthcare Nursing & Care Ltd
Peterborough City Council,Children's & Education Services - Children's Social Care,Support Services & Management Costs,Employees,26/10/2011,409662,1614.06,REVENUE,Service Care Solutions Ltd
Peterborough City Council,Children's & Education Services - Children's Social Care,Children Looked After,Employees,26/10/2011,410022,541.55,REVENUE,Randstad Care Ltd
Peterborough City Council,Children's & Education Services - Education,Non-School Funding,Transport,26/10/2011,410062,3420,REVENUE,Grettons Coaches
Peterborough City Council,Children's & Education Services - Education,Non-School Funding,Transport,26/10/2011,410063,3690,REVENUE,Grettons Coaches
Peterborough City Council,Children's & Education Services - Education,Non-School Funding,Transport,26/10/2011,410064,3330,REVENUE,Grettons Coaches
Peterborough City Council,Children's & Education Services - Education,Non-School Funding,Transport,26/10/2011,410065,3312,REVENUE,Grettons Coaches
Peterborough City Council,Children's & Education Services - Education,Non-School Funding,Transport,26/10/2011,410066,3312,REVENUE,Grettons Coaches
Peterborough City Council,Children's & Education Services - Education,Non-School Funding,Transport,26/10/2011,410067,3330,REVENUE,Grettons Coaches
Peterborough City Council,Children's & Education Services - Education,Non-School Funding,Transport,26/10/2011,410068,3330,REVENUE,Grettons Coaches
Peterborough City Council,Children's & Education Services - Education,Non-School Funding,Transport,26/10/2011,410069,3546,REVENUE,Grettons Coaches
Peterborough City Council,Children's & Education Services - Education,Non-School Funding,Transport,26/10/2011,410070,1512,REVENUE,Orton Comm. Transport Assoc. Ltd
Peterborough City Council,Children's & Education Services - Education,Non-School Funding,Transport,26/10/2011,410071,1692,REVENUE,Orton Comm. Transport Assoc. Ltd
Peterborough City Council,Children's & Education Services - Education,Non-School Funding,Transport,26/10/2011,410072,1800,REVENUE,Orton Comm. Transport Assoc. Ltd
Peterborough City Council,Children's & Education Services - Education,Non-School Funding,Transport,26/10/2011,410073,1710,REVENUE,Orton Comm. Transport Assoc. Ltd
Peterborough City Council,"Highways, Roads & Transport Services",Public Transport,Employees,26/10/2011,410088,588,REVENUE,Ridingabike
Peterborough City Council,Corporate & Democratic Core,Corporate Management,Supplies and Services,26/10/2011,410096,43200,REVENUE,PricewaterhouseCoopers LLP
Peterborough City Council,Children's & Education Services - Children's Social Care,Other Children's & Families Services,Supplies and Services,26/10/2011,410097,4338,REVENUE,Flick Schofield Ltd
Peterborough City Council,Children's & Education Services - Children's Social Care,Support Services & Management Costs,Supplies and Services,26/10/2011,410106,1062,REVENUE,Kingsgate Trading Ltd
Peterborough City Council,Children's & Education Services - Children's Social Care,Other Children's & Families Services,Employees,26/10/2011,410110,13860,REVENUE,Jane Scannell Ltd
Peterborough City Council,"Highways, Roads & Transport Services",Public Transport,Supplies and Services,26/10/2011,410112,804,REVENUE,Pindar Creative
Peterborough City Council,Environmental and Regulatory Services,Waste Collection,Premises,26/10/2011,410113,2000.4,REVENUE,Dal-Rod
Peterborough City Council,Housing Services,Housing Benefits,Employees,26/10/2011,410119,1227.06,REVENUE,The Synergy Group
Peterborough City Council,Housing Services,Housing Benefits,Employees,26/10/2011,410121,1443.6,REVENUE,The Synergy Group
Peterborough City Council,Central Services to the Public,Local Tax,Supplies and Services,26/10/2011,410134,2760.42,REVENUE,Financial Data Management
Peterborough City Council,Support Services,Support Services,Supplies and Services,26/10/2011,410143,5010,REVENUE,J W D'arcy Ltd
Peterborough City Council,"Highways, Roads & Transport Services","Transport planning, policy and strategy",Supplies and Services,26/10/2011,410145,661.5,REVENUE,Johnston Press Midlands Division
Peterborough City Council,Children's & Education Services - Children's Social Care,Family Support Services,Supplies and Services,26/10/2011,410146,48480.25,REVENUE,Cambs & P'boro NHS Foundation Trust
Peterborough City Council,Children's & Education Services - Children's Social Care,Family Support Services,Employees,26/10/2011,410147,18577.32,REVENUE,Cambs & P'boro NHS Foundation Trust
Peterborough City Council,Children's & Education Services - Education,Non-School Funding,Supplies and Services,26/10/2011,410151,11403.5,REVENUE,Norfolk County Council
Peterborough City Council,Children's & Education Services - Children's Social Care,Other Children's & Families Services,Supplies and Services,26/10/2011,410153,12750,REVENUE,Cambs & P'boro NHS Foundation Trust
Peterborough City Council,Capital,Capital,Capital Pending Update to BS,26/10/2011,410189,1888.19,CAPITAL,Mott Macdonald
Peterborough City Council,Planning Services,Development Control,Supplies and Services,26/10/2011,410203,911.4,REVENUE,Johnston Press Midlands Division
Peterborough City Council,Children's & Education Services - Children's Social Care,Children Looked After,Supplies and Services - Transfer Payments,26/10/2011,410214,2756.59,REVENUE,Key2
Peterborough City Council,Children's & Education Services - Children's Social Care,Children Looked After,Supplies and Services - Transfer Payments,26/10/2011,410216,2376,REVENUE,Key2
Peterborough City Council,Children's & Education Services - Education,Secondary,Supplies and Services,26/10/2011,410217,4976.4,REVENUE,Rider Levett Bucknall UK Ltd
Peterborough City Council,Children's & Education Services - Children's Social Care,Children Looked After,Supplies and Services - Transfer Payments,26/10/2011,410221,1027.34,REVENUE,Key2
Peterborough City Council,Children's & Education Services - Children's Social Care,Children Looked After,Supplies and Services - Transfer Payments,26/10/2011,410223,4600.32,REVENUE,Key2
Peterborough City Council,Children's & Education Services - Children's Social Care,Children Looked After,Supplies and Services - Transfer Payments,26/10/2011,410233,3703.57,REVENUE,Fosterplus Ltd
Peterborough City Council,Capital,Capital,Capital Pending Update to BS,26/10/2011,410240,2475.18,CAPITAL,Portakabin Ltd
Peterborough City Council,Environmental and Regulatory Services,"Cemetery, Crematorium & Mortuary Services",Premises,26/10/2011,410250,675.78,REVENUE,Yaboo Company Ltd T/a Wesley Music
Peterborough City Council,Children's & Education Services - Education,Non-School Funding,Supplies and Services,26/10/2011,410254,2000,REVENUE,Peakirk cum Glinton C of E  P S
Peterborough City Council,Children's & Education Services - Children's Social Care,Youth Justice,Supplies and Services,26/10/2011,410259,10500,REVENUE,The Froglife Trust
Peterborough City Council,Children's & Education Services - Children's Social Care,Support Services & Management Costs,Supplies and Services,26/10/2011,410260,1877.15,REVENUE,Redacted Personal Data
Peterborough City Council,Children's & Education Services - Children's Social Care,Family Support Services,Supplies and Services,26/10/2011,410264,544,REVENUE,Goldsborough Homecare
Peterborough City Council,Children's & Education Services - Children's Social Care,Children Looked After,Supplies and Services - Transfer Payments,26/10/2011,410265,3304.2,REVENUE,National Fostering Agency
Peterborough City Council,Children's & Education Services - Children's Social Care,Children Looked After,Supplies and Services - Transfer Payments,26/10/2011,410269,1431.82,REVENUE,National Fostering Agency
Peterborough City Council,Children's & Education Services - Children's Social Care,Other Children's & Families Services,Supplies and Services,26/10/2011,410270,39250,REVENUE,Cambridgeshire County Council
Peterborough City Council,Children's & Education Services - Children's Social Care,Children Looked After,Supplies and Services - Transfer Payments,26/10/2011,410273,1851.87,REVENUE,National Fostering Agency
Peterborough City Council,Children's & Education Services - Education,Secondary,Premises,26/10/2011,410280,3821.4,REVENUE,Stile Fencing & Construction
Peterborough City Council,Capital,Capital,Capital Pending Update to BS,26/10/2011,410281,5137.2,CAPITAL,UK Power Networks (operations) Ltd
Peterborough City Council,Children's & Education Services - Children's Social Care,Children Looked After,Supplies and Services - Transfer Payments,26/10/2011,410286,13263.66,REVENUE,Direct Care Limited
Peterborough City Council,Children's & Education Services - Children's Social Care,Children Looked After,Supplies and Services - Transfer Payments,26/10/2011,410291,3304.2,REVENUE,National Fostering Agency
Peterborough City Council,Children's & Education Services - Children's Social Care,Children Looked After,Supplies and Services - Transfer Payments,26/10/2011,410292,660.84,REVENUE,National Fostering Agency
Peterborough City Council,Children's & Education Services - Children's Social Care,Children Looked After,Supplies and Services - Transfer Payments,26/10/2011,410294,3304.2,REVENUE,National Fostering Agency
Peterborough City Council,Children's & Education Services - Children's Social Care,Children Looked After,Supplies and Services - Transfer Payments,26/10/2011,410297,2962.66,REVENUE,National Fostering Agency
Peterborough City Council,Children's & Education Services - Education,Non-School Funding,Supplies and Services,26/10/2011,410310,2936.7,REVENUE,Cool Milk at School Ltd
Peterborough City Council,Children's & Education Services - Education,Non-School Funding,Supplies and Services,26/10/2011,410311,10397.4,REVENUE,Cool Milk Ltd
Peterborough City Council,Children's & Education Services - Children's Social Care,Children Looked After,Supplies and Services - Transfer Payments,26/10/2011,410313,3300,REVENUE,Acorn Fostering Services Ltd
Peterborough City Council,Children's & Education Services - Children's Social Care,Children Looked After,Supplies and Services - Transfer Payments,26/10/2011,410314,2603.22,REVENUE,National Fostering Agency
Peterborough City Council,"Highways, Roads & Transport Services",Public Transport,Supplies and Services,26/10/2011,410398,11519.09,REVENUE,Statutory Payment of Concessionary Fares to Bus Provider
Peterborough City Council,Children's & Education Services - Children's Social Care,Children Looked After,Supplies and Services - Transfer Payments,26/10/2011,410440,3260.89,REVENUE,I S P
Peterborough City Council,Children's & Education Services - Children's Social Care,Children Looked After,Supplies and Services - Transfer Payments,26/10/2011,410442,5637.97,REVENUE,I S P
Peterborough City Council,Children's & Education Services - Children's Social Care,Children Looked After,Supplies and Services - Transfer Payments,26/10/2011,410443,3260.89,REVENUE,I S P
Peterborough City Council,Capital,Capital,Capital Pending Update to BS,26/10/2011,410461,2268,CAPITAL,Peterborough Tree Services Ltd
Peterborough City Council,Children's & Education Services - Children's Social Care,Children Looked After,Supplies and Services,26/10/2011,410471,8324,REVENUE,Cambs & P'boro NHS Foundation Trust
Peterborough City Council,Children's & Education Services - Education,Non-School Funding,Transport,26/10/2011,410479,1274.4,REVENUE,R T Enterprises Ltd T/A Royal Taxis
Peterborough City Council,Children's & Education Services - Education,Non-School Funding,Transport,26/10/2011,410480,1188,REVENUE,R T Enterprises Ltd T/A Royal Taxis
Peterborough City Council,Children's & Education Services - Education,Non-School Funding,Transport,26/10/2011,410483,1248,REVENUE,R T Enterprises Ltd T/A Royal Taxis
Peterborough City Council,Children's & Education Services - Education,Non-School Funding,Transport,26/10/2011,410487,1296,REVENUE,Ash School Transport
Peterborough City Council,Children's & Education Services - Education,Non-School Funding,Transport,26/10/2011,410488,1512,REVENUE,Ash School Transport
Peterborough City Council,Children's & Education Services - Education,Non-School Funding,Transport,26/10/2011,410489,1740,REVENUE,Ash School Transport
Peterborough City Council,Children's & Education Services - Education,Non-School Funding,Transport,26/10/2011,410490,576,REVENUE,Ash School Transport
Peterborough City Council,Children's & Education Services - Education,Non-School Funding,Transport,26/10/2011,410491,826.8,REVENUE,Ash School Transport
Peterborough City Council,Children's & Education Services - Education,Non-School Funding,Transport,26/10/2011,410493,1172.4,REVENUE,King Cabz
Peterborough City Council,Children's & Education Services - Education,Non-School Funding,Transport,26/10/2011,410494,648,REVENUE,King Cabz
Peterborough City Council,Children's & Education Services - Education,Non-School Funding,Transport,26/10/2011,410495,777.6,REVENUE,King Cabz
Peterborough City Council,Children's & Education Services - Education,Non-School Funding,Transport,26/10/2011,410497,507.6,REVENUE,King Cabz
Peterborough City Council,Children's & Education Services - Education,Non-School Funding,Transport,26/10/2011,410498,2678.4,REVENUE,King Cabz
Peterborough City Council,Children's & Education Services - Education,Non-School Funding,Transport,26/10/2011,410500,615.6,REVENUE,King Cabz
Peterborough City Council,Children's & Education Services - Education,Non-School Funding,Transport,26/10/2011,410501,734.4,REVENUE,King Cabz
Peterborough City Council,Children's & Education Services - Education,Non-School Funding,Transport,26/10/2011,410502,561,REVENUE,King Cabz
Peterborough City Council,Capital,Capital,Capital Pending Update to BS,26/10/2011,410520,3638.41,CAPITAL,Haley Sharpe Design Ltd
Peterborough City Council,Children's & Education Services - Children's Social Care,Other Children's & Families Services,Third Party Payments,26/10/2011,410557,10000,REVENUE,Scope
Peterborough City Council,"Highways, Roads & Transport Services",Regulatory services,Supplies and Services,26/10/2011,410569,925,REVENUE,Unity Automotive Peterborough Ltd
Peterborough City Council,Housing Services,Private Sector Housing Renewal,Supplies and Services,26/10/2011,410577,943.5,REVENUE,Fletton Electrics Ltd
Peterborough City Council,Children's & Education Services - Education,Primary,Supplies and Services,26/10/2011,410579,2575.01,REVENUE,Redacted Personal Data
Peterborough City Council,"Highways, Roads & Transport Services",Public Transport,Supplies and Services,26/10/2011,410591,17039.7,REVENUE,Stagecoach Viscount
Peterborough City Council,Support Services,Support Services,Employees,26/10/2011,410623,5250,REVENUE,Creative Communications Solutions
Peterborough City Council,More than one Service Area Category,More than one Service Division,Balance Sheet,26/10/2011,410634,954.19,Balance Sheet,Rossendales C B Ltd
Peterborough City Council,Children's & Education Services - Children's Social Care,Children Looked After,Supplies and Services - Transfer Payments,26/10/2011,410650,2734.94,REVENUE,Alliance Foster Care
Peterborough City Council,Capital,Capital,Capital Pending Update to BS,26/10/2011,410656,6111.6,CAPITAL,Enterprise Managed Services Limited
Peterborough City Council,Children's & Education Services - Children's Social Care,Children Looked After,Supplies and Services - Transfer Payments,26/10/2011,410657,1157.09,REVENUE,Alliance Foster Care
Peterborough City Council,Children's & Education Services - Children's Social Care,Children Looked After,Supplies and Services - Transfer Payments,26/10/2011,410658,964.81,REVENUE,Alliance Foster Care
Peterborough City Council,Children's & Education Services - Children's Social Care,Children Looked After,Supplies and Services - Transfer Payments,26/10/2011,410659,3260.89,REVENUE,Alliance Foster Care
Peterborough City Council,Children's & Education Services - Children's Social Care,Children Looked After,Supplies and Services - Transfer Payments,26/10/2011,410660,2719.01,REVENUE,Alliance Foster Care
Peterborough City Council,Capital,Capital,Capital Pending Update to BS,26/10/2011,410663,3705.6,CAPITAL,Enterprise Managed Services Limited
Peterborough City Council,Capital,Capital,Capital Pending Update to BS,26/10/2011,410664,3750,CAPITAL,Enterprise Managed Services Limited
Peterborough City Council,Capital,Capital,Capital Pending Update to BS,26/10/2011,410665,5180.4,CAPITAL,Enterprise Managed Services Limited
Peterborough City Council,Capital,Capital,Capital Pending Update to BS,26/10/2011,410666,8847.6,CAPITAL,Enterprise Managed Services Limited
Peterborough City Council,Capital,Capital,Capital Pending Update to BS,26/10/2011,410667,7141.2,CAPITAL,Enterprise Managed Services Limited
Peterborough City Council,Support Services,Support Services,Supplies and Services,26/10/2011,410668,2625.36,REVENUE,PHS Datashred
Peterborough City Council,Capital,Capital,Capital Pending Update to BS,26/10/2011,410716,166345.21,CAPITAL,Meyvaert Glass Engineering Ltd
Peterborough City Council,Planning Services,More than one Service Division,Supplies and Services,26/10/2011,410717,2520,REVENUE,The Wildlife Trust BCNP
Peterborough City Council,Children's & Education Services - Education,Primary,Supplies and Services,26/10/2011,410719,948,REVENUE,Normans
Peterborough City Council,"Highways, Roads & Transport Services","Transport planning, policy and strategy",Supplies and Services,26/10/2011,410725,663.48,REVENUE,Kelway (UK) Ltd
Peterborough City Council,Court Services,Coroner's Court Service,Supplies and Services,26/10/2011,410734,1936,REVENUE,BDW Practice Account
Peterborough City Council,Cultural and Related Services,Waste Collection,Supplies and Services,26/10/2011,410737,15862.94,REVENUE,H W Martin Waste Ltd
Peterborough City Council,More than one Service Area Category,More than one Service Division,Supplies and Services,26/10/2011,410744,1463.71,REVENUE,TNT Post Midlands Ltd
Peterborough City Council,Children's & Education Services - Children's Social Care,Support Services & Management Costs,Supplies and Services,26/10/2011,410747,615,REVENUE,N & S Consultants Ltd
Peterborough City Council,Children's & Education Services - Children's Social Care,Children Looked After,Supplies and Services - Transfer Payments,26/10/2011,410784,4761.3,REVENUE,Tree House Care Fostering Solutions Ltd
Peterborough City Council,Children's & Education Services - Education,Non-School Funding,Transport,26/10/2011,410860,3067.2,REVENUE,Woodgrange Travel Ltd t/a DiamondCars
Peterborough City Council,More than one Service Area Category,More than one Service Division,Transport,26/10/2011,410861,1224,REVENUE,Woodgrange Travel Ltd t/a DiamondCars
Peterborough City Council,More than one Service Area Category,More than one Service Division,Transport,26/10/2011,410862,2226.96,REVENUE,Woodgrange Travel Ltd t/a DiamondCars
Peterborough City Council,More than one Service Area Category,More than one Service Division,Transport,26/10/2011,410863,943.2,REVENUE,Woodgrange Travel Ltd t/a DiamondCars
Peterborough City Council,Children's & Education Services - Education,Non-School Funding,Transport,26/10/2011,410864,2113.2,REVENUE,Woodgrange Travel Ltd t/a DiamondCars
Peterborough City Council,Children's & Education Services - Education,Non-School Funding,Transport,26/10/2011,410865,2592,REVENUE,Woodgrange Travel Ltd t/a DiamondCars
Peterborough City Council,Children's & Education Services - Education,Non-School Funding,Transport,26/10/2011,410866,1862.4,REVENUE,Woodgrange Travel Ltd t/a DiamondCars
Peterborough City Council,Children's & Education Services - Education,Non-School Funding,Transport,26/10/2011,410867,1316.16,REVENUE,Woodgrange Travel Ltd t/a DiamondCars
Peterborough City Council,Children's & Education Services - Education,Non-School Funding,Transport,26/10/2011,410868,590.4,REVENUE,Woodgrange Travel Ltd t/a DiamondCars
Peterborough City Council,Children's & Education Services - Education,Non-School Funding,Transport,26/10/2011,410870,1555.2,REVENUE,Woodgrange Travel Ltd t/a DiamondCars
Peterborough City Council,Children's & Education Services - Education,Non-School Funding,Transport,26/10/2011,410872,550.8,REVENUE,Woodgrange Travel Ltd t/a DiamondCars
Peterborough City Council,Children's & Education Services - Education,Non-School Funding,Transport,26/10/2011,410873,1123.2,REVENUE,Woodgrange Travel Ltd t/a DiamondCars
Peterborough City Council,Children's & Education Services - Education,Non-School Funding,Transport,26/10/2011,410874,1317.6,REVENUE,Woodgrange Travel Ltd t/a DiamondCars
Peterborough City Council,Children's & Education Services - Education,Non-School Funding,Transport,26/10/2011,410875,3114,REVENUE,Newborough Coaches Ltd
Peterborough City Council,Children's & Education Services - Education,Non-School Funding,Transport,26/10/2011,410876,2952,REVENUE,Newborough Coaches Ltd
Peterborough City Council,More than one Service Area Category,More than one Service Division,Transport,26/10/2011,410877,3564,REVENUE,Newborough Coaches Ltd
Peterborough City Council,Children's & Education Services - Education,Non-School Funding,Transport,26/10/2011,410878,3753.36,REVENUE,Newborough Coaches Ltd
Peterborough City Council,Children's & Education Services - Education,Non-School Funding,Transport,26/10/2011,410879,1248,REVENUE,R T Enterprises Ltd T/A Royal Taxis
Peterborough City Council,Children's & Education Services - Education,Non-School Funding,Transport,26/10/2011,410880,2223,REVENUE,Hampton Private Hire
Peterborough City Council,Children's & Education Services - Education,Non-School Funding,Transport,26/10/2011,410881,1944,REVENUE,Woodgrange Travel Ltd t/a DiamondCars
Peterborough City Council,Children's & Education Services - Education,Non-School Funding,Transport,26/10/2011,410882,1728,REVENUE,Woodgrange Travel Ltd t/a DiamondCars
Peterborough City Council,Children's & Education Services - Children's Social Care,Family Support Services,Premises,26/10/2011,410917,675.6,REVENUE,Thorokleen Ltd
Peterborough City Council,Planning Services,Economic Development,Supplies and Services,26/10/2011,410943,1920,REVENUE,OCMIS Ltd
Peterborough City Council,Planning Services,Economic Development,Supplies and Services,26/10/2011,410944,1170.22,REVENUE,OCMIS Ltd
Peterborough City Council,Cultural and Related Services,Recreation & Sport,Supplies and Services,26/10/2011,411548,1295,REVENUE,Park Inn Peterborough
Peterborough City Council,Support Services,Support Services,Supplies and Services,26/10/2011,411549,686.4,REVENUE,Speedy Couriers
Peterborough City Council,Children's & Education Services - Children's Social Care,Children Looked After,Supplies and Services - Transfer Payments,26/10/2011,411581,2791.46,REVENUE,IAS TACT
Peterborough City Council,Children's & Education Services - Children's Social Care,Children Looked After,Supplies and Services - Transfer Payments,26/10/2011,411592,3444.86,REVENUE,IAS TACT
Peterborough City Council,Children's & Education Services - Children's Social Care,Children Looked After,Supplies and Services - Transfer Payments,26/10/2011,411593,3146.87,REVENUE,IAS TACT
Peterborough City Council,Children's & Education Services - Children's Social Care,Children Looked After,Supplies and Services - Transfer Payments,26/10/2011,411594,3146.87,REVENUE,IAS TACT
Peterborough City Council,Children's & Education Services - Children's Social Care,Children Looked After,Supplies and Services - Transfer Payments,26/10/2011,411595,5886.34,REVENUE,IAS TACT
Peterborough City Council,Children's & Education Services - Children's Social Care,Children Looked After,Supplies and Services - Transfer Payments,26/10/2011,411596,3146.87,REVENUE,IAS TACT
Peterborough City Council,Children's & Education Services - Children's Social Care,Children Looked After,Supplies and Services - Transfer Payments,26/10/2011,411598,3146.87,REVENUE,IAS TACT
Peterborough City Council,Children's & Education Services - Children's Social Care,Children Looked After,Supplies and Services - Transfer Payments,26/10/2011,411599,5582.92,REVENUE,IAS TACT
Peterborough City Council,Children's & Education Services - Children's Social Care,Children Looked After,Supplies and Services - Transfer Payments,26/10/2011,412007,2791.46,REVENUE,IAS TACT
Peterborough City Council,Children's & Education Services - Children's Social Care,Children Looked After,Supplies and Services - Transfer Payments,26/10/2011,412008,5677.32,REVENUE,IAS TACT
Peterborough City Council,Children's & Education Services - Children's Social Care,Children Looked After,Supplies and Services - Transfer Payments,26/10/2011,412009,3173.45,REVENUE,IAS TACT
